Department family,Entity,Date,Expense Type,Expense area,Supplier,Transaction number,AP Amount (�)
Department of Health,NHS Sheffield CCG,30/09/2019,C&M-PMS Contract Value,PRC DELEGATED CO-COMMISSIONING,ABBEY LANE SURGERY,28878510,"23,782.31 "
Department of Health,NHS Sheffield CCG,30/09/2019,C&M-PMS Out of Hours Opt Outs,PRC DELEGATED CO-COMMISSIONING,ABBEY LANE SURGERY,28878510,23.10 
Department of Health,NHS Sheffield CCG,30/09/2019,C&M-PMS PCN DES Participation,PRC DELEGATED CO-COMMISSIONING,ABBEY LANE SURGERY,28878510,452.23 
Department of Health,NHS Sheffield CCG,30/09/2019,C&M-PMS Prem Notional Rent,PRC DELEGATED CO-COMMISSIONING,ABBEY LANE SURGERY,28878510,"2,122.92 "
Department of Health,NHS Sheffield CCG,30/09/2019,C&M-PMS QOF Aspiration,PRC DELEGATED CO-COMMISSIONING,ABBEY LANE SURGERY,28878510,"2,636.98 "
Department of Health,NHS Sheffield CCG,30/09/2019,Cont Care-Physical Disab (65+),CHC ADULT FULLY FUNDED,ABBEYCARE NURSING,28893583,"51,722.10 "
Department of Health,NHS Sheffield CCG,30/09/2019,C&M-PMS Contract Value,PRC DELEGATED CO-COMMISSIONING,AVENUE MEDICAL CENTRE SHEFFIELD,28878508,"55,174.87 "
Department of Health,NHS Sheffield CCG,30/09/2019,C&M-PMS Out of Hours Opt Outs,PRC DELEGATED CO-COMMISSIONING,AVENUE MEDICAL CENTRE SHEFFIELD,28878508,10.28 
Department of Health,NHS Sheffield CCG,30/09/2019,C&M-PMS PCN DES Participation,PRC DELEGATED CO-COMMISSIONING,AVENUE MEDICAL CENTRE SHEFFIELD,28878508,"1,058.32 "
Department of Health,NHS Sheffield CCG,30/09/2019,C&M-PMS PCO Other,PRC DELEGATED CO-COMMISSIONING,AVENUE MEDICAL CENTRE SHEFFIELD,28878508,460.30 
Department of Health,NHS Sheffield CCG,30/09/2019,C&M-PMS Prem Notional Rent,PRC DELEGATED CO-COMMISSIONING,AVENUE MEDICAL CENTRE SHEFFIELD,28878508,"5,546.67 "
Department of Health,NHS Sheffield CCG,30/09/2019,C&M-PMS Prem Rates,PRC DELEGATED CO-COMMISSIONING,AVENUE MEDICAL CENTRE SHEFFIELD,28878508,"1,264.00 "
Department of Health,NHS Sheffield CCG,30/09/2019,C&M-PMS QOF Aspiration,PRC DELEGATED CO-COMMISSIONING,AVENUE MEDICAL CENTRE SHEFFIELD,28878508,"5,847.72 "
Department of Health,NHS Sheffield CCG,30/09/2019,Hcare Srv Rec Fdtn Trust-Contract Baseline,ACUTE COMMISSIONING,BARNSLEY HOSPITAL NHS FOUNDATION TRUST,28967361,"86,710.00 "
Department of Health,NHS Sheffield CCG,30/09/2019,C&M-PMS Contract Value,PRC DELEGATED CO-COMMISSIONING,BARNSLEY ROAD SURGERY,28878512,"21,707.99 "
Department of Health,NHS Sheffield CCG,30/09/2019,C&M-PMS DES Learn Dsblty Hlth Chk,PRC DELEGATED CO-COMMISSIONING,BARNSLEY ROAD SURGERY,28878512,560.00 
Department of Health,NHS Sheffield CCG,30/09/2019,C&M-PMS PCN DES Participation,PRC DELEGATED CO-COMMISSIONING,BARNSLEY ROAD SURGERY,28878512,410.63 
Department of Health,NHS Sheffield CCG,30/09/2019,C&M-PMS Prem Notional Rent,PRC DELEGATED CO-COMMISSIONING,BARNSLEY ROAD SURGERY,28878512,"2,652.17 "
Department of Health,NHS Sheffield CCG,30/09/2019,C&M-PMS Prem Water Rates,PRC DELEGATED CO-COMMISSIONING,BARNSLEY ROAD SURGERY,28878512,133.64 
Department of Health,NHS Sheffield CCG,30/09/2019,C&M-PMS QOF Aspiration,PRC DELEGATED CO-COMMISSIONING,BARNSLEY ROAD SURGERY,28878512,"2,377.21 "
Department of Health,NHS Sheffield CCG,30/09/2019,C&M-GMS Global Sum,PRC DELEGATED CO-COMMISSIONING,BASLOW ROAD & SHOREHAM STREET SURGERIES,29113073,"97,980.73 "
Department of Health,NHS Sheffield CCG,30/09/2019,C&M-GMS MPIG Correction Factor,PRC DELEGATED CO-COMMISSIONING,BASLOW ROAD & SHOREHAM STREET SURGERIES,29113073,146.21 
Department of Health,NHS Sheffield CCG,30/09/2019,C&M-GMS PCN DES Participation,PRC DELEGATED CO-COMMISSIONING,BASLOW ROAD & SHOREHAM STREET SURGERIES,29113073,"2,012.54 "
Department of Health,NHS Sheffield CCG,30/09/2019,C&M-GMS PCO Seniority,PRC DELEGATED CO-COMMISSIONING,BASLOW ROAD & SHOREHAM STREET SURGERIES,29113073,"1,487.93 "
Department of Health,NHS Sheffield CCG,30/09/2019,C&M-GMS Prem Notional Rent,PRC DELEGATED CO-COMMISSIONING,BASLOW ROAD & SHOREHAM STREET SURGERIES,29113073,"8,222.71 "
Department of Health,NHS Sheffield CCG,30/09/2019,C&M-GMS Prem Rates,PRC DELEGATED CO-COMMISSIONING,BASLOW ROAD & SHOREHAM STREET SURGERIES,29113073,"2,421.00 "
Department of Health,NHS Sheffield CCG,30/09/2019,C&M-GMS QOF Aspiration,PRC DELEGATED CO-COMMISSIONING,BASLOW ROAD & SHOREHAM STREET SURGERIES,29113073,"10,278.96 "
Department of Health,NHS Sheffield CCG,30/09/2019,Cont Care-Physical Disab (65+),CHC ADULT FULLY FUNDED,BC SHEFFIELD LTD,28853356,"38,229.75 "
Department of Health,NHS Sheffield CCG,30/09/2019,C&M-PMS Contract Value,PRC DELEGATED CO-COMMISSIONING,BIRLEY HEALTH CENTRE,28878514,"63,913.00 "
Department of Health,NHS Sheffield CCG,30/09/2019,C&M-PMS PCN DES Participation,PRC DELEGATED CO-COMMISSIONING,BIRLEY HEALTH CENTRE,28878514,"1,209.32 "
Department of Health,NHS Sheffield CCG,30/09/2019,C&M-PMS PCO Other,PRC DELEGATED CO-COMMISSIONING,BIRLEY HEALTH CENTRE,28878514,535.90 
Department of Health,NHS Sheffield CCG,30/09/2019,C&M-PMS PCO Seniority,PRC DELEGATED CO-COMMISSIONING,BIRLEY HEALTH CENTRE,28878514,"2,529.87 "
Department of Health,NHS Sheffield CCG,30/09/2019,C&M-PMS Prem Notional Rent,PRC DELEGATED CO-COMMISSIONING,BIRLEY HEALTH CENTRE,28878514,"7,600.58 "
Department of Health,NHS Sheffield CCG,30/09/2019,C&M-PMS Prem Rates,PRC DELEGATED CO-COMMISSIONING,BIRLEY HEALTH CENTRE,28878514,"1,407.00 "
Department of Health,NHS Sheffield CCG,30/09/2019,C&M-PMS QOF Aspiration,PRC DELEGATED CO-COMMISSIONING,BIRLEY HEALTH CENTRE,28878514,"7,981.39 "
Department of Health,NHS Sheffield CCG,30/09/2019,Clinical&Medical-Independent Sector,ACUTE COMMISSIONING,BMI HEALTHCARE LTD,28906313,"59,155.50 "
Department of Health,NHS Sheffield CCG,30/09/2019,Cont Care-Funded Nursing Care Allow,FUNDED NURSING CARE,BONDCARE,28906645,"38,504.38 "
Department of Health,NHS Sheffield CCG,30/09/2019,C&M-GMS Cost of Drugs -Prescribing,LOCAL ENHANCED SERVICES,BROOMHILL SURGERY,29113080,"2,283.66 "
Department of Health,NHS Sheffield CCG,30/09/2019,C&M-GMS Global Sum,PRC DELEGATED CO-COMMISSIONING,BROOMHILL SURGERY,29113080,"64,875.57 "
Department of Health,NHS Sheffield CCG,30/09/2019,C&M-GMS MPIG Correction Factor,PRC DELEGATED CO-COMMISSIONING,BROOMHILL SURGERY,29113080,251.00 
Department of Health,NHS Sheffield CCG,30/09/2019,C&M-GMS PCN DES Participation,PRC DELEGATED CO-COMMISSIONING,BROOMHILL SURGERY,29113080,"1,318.50 "
Department of Health,NHS Sheffield CCG,30/09/2019,C&M-GMS PCO Seniority,PRC DELEGATED CO-COMMISSIONING,BROOMHILL SURGERY,29113080,978.37 
Department of Health,NHS Sheffield CCG,30/09/2019,C&M-GMS Prem Cost Rent,PRC DELEGATED CO-COMMISSIONING,BROOMHILL SURGERY,29113080,"2,413.75 "
Department of Health,NHS Sheffield CCG,30/09/2019,C&M-GMS Prem Notional Rent,PRC DELEGATED CO-COMMISSIONING,BROOMHILL SURGERY,29113080,"2,612.50 "
Department of Health,NHS Sheffield CCG,30/09/2019,C&M-GMS Prem Rates,PRC DELEGATED CO-COMMISSIONING,BROOMHILL SURGERY,29113080,"1,891.00 "
Department of Health,NHS Sheffield CCG,30/09/2019,C&M-GMS Prof Fees Prescribing,PRC DELEGATED CO-COMMISSIONING,BROOMHILL SURGERY,29113080,120.27 
Department of Health,NHS Sheffield CCG,30/09/2019,C&M-GMS QOF Aspiration,PRC DELEGATED CO-COMMISSIONING,BROOMHILL SURGERY,29113080,"6,211.39 "
Department of Health,NHS Sheffield CCG,30/09/2019,C&M-GMS IT Comm Servs -GP Practices,PRIMARY CARE IT,BT GLOBAL SERVICES,29033562,"25,017.07 "
Department of Health,NHS Sheffield CCG,30/09/2019,Computer Software/License,CORPORATE COSTS & SERVICES,BT GLOBAL SERVICES,29033562,634.68 
Department of Health,NHS Sheffield CCG,30/09/2019,C&M-GMS Cost of Drugs -Prescribing,LOCAL ENHANCED SERVICES,BUCHANAN ROAD SURGERY,29113076,53.46 
Department of Health,NHS Sheffield CCG,30/09/2019,C&M-GMS Global Sum,PRC DELEGATED CO-COMMISSIONING,BUCHANAN ROAD SURGERY,29113076,"36,082.57 "
Department of Health,NHS Sheffield CCG,30/09/2019,C&M-GMS MPIG Correction Factor,PRC DELEGATED CO-COMMISSIONING,BUCHANAN ROAD SURGERY,29113076,655.25 
Department of Health,NHS Sheffield CCG,30/09/2019,C&M-GMS PCN DES Participation,PRC DELEGATED CO-COMMISSIONING,BUCHANAN ROAD SURGERY,29113076,736.41 
Department of Health,NHS Sheffield CCG,30/09/2019,C&M-GMS PCO Seniority,PRC DELEGATED CO-COMMISSIONING,BUCHANAN ROAD SURGERY,29113076,413.60 
Department of Health,NHS Sheffield CCG,30/09/2019,C&M-GMS Prem Notional Rent,PRC DELEGATED CO-COMMISSIONING,BUCHANAN ROAD SURGERY,29113076,"2,595.83 "
Department of Health,NHS Sheffield CCG,30/09/2019,C&M-GMS Prem Rates,PRC DELEGATED CO-COMMISSIONING,BUCHANAN ROAD SURGERY,29113076,884.00 
Department of Health,NHS Sheffield CCG,30/09/2019,C&M-GMS Prof Fees Prescribing,PRC DELEGATED CO-COMMISSIONING,BUCHANAN ROAD SURGERY,29113076,19.24 
Department of Health,NHS Sheffield CCG,30/09/2019,C&M-GMS QOF Aspiration,PRC DELEGATED CO-COMMISSIONING,BUCHANAN ROAD SURGERY,29113076,"4,303.24 "
Department of Health,NHS Sheffield CCG,30/09/2019,C&M-PMS Contract Value,PRC DELEGATED CO-COMMISSIONING,BURNCROSS SURGERY,28878516,"121,145.86 "
Department of Health,NHS Sheffield CCG,30/09/2019,C&M-PMS PCN DES Participation,PRC DELEGATED CO-COMMISSIONING,BURNCROSS SURGERY,28878516,"2,292.15 "
Department of Health,NHS Sheffield CCG,30/09/2019,C&M-PMS PCO Seniority,PRC DELEGATED CO-COMMISSIONING,BURNCROSS SURGERY,28878516,"2,009.48 "
Department of Health,NHS Sheffield CCG,30/09/2019,C&M-PMS Prem Notional Rent,PRC DELEGATED CO-COMMISSIONING,BURNCROSS SURGERY,28878516,"14,058.33 "
Department of Health,NHS Sheffield CCG,30/09/2019,C&M-PMS QOF Aspiration,PRC DELEGATED CO-COMMISSIONING,BURNCROSS SURGERY,28878516,"15,732.40 "
Department of Health,NHS Sheffield CCG,30/09/2019,C&M-PMS Contract Value,PRC DELEGATED CO-COMMISSIONING,BURNGREAVE SURGERY,28878518,"57,355.43 "
Department of Health,NHS Sheffield CCG,30/09/2019,C&M-PMS Out of Hours Opt Outs,PRC DELEGATED CO-COMMISSIONING,BURNGREAVE SURGERY,28878518,6.70 
Department of Health,NHS Sheffield CCG,30/09/2019,C&M-PMS PCN DES Participation,PRC DELEGATED CO-COMMISSIONING,BURNGREAVE SURGERY,28878518,"1,088.98 "
Department of Health,NHS Sheffield CCG,30/09/2019,C&M-PMS Prem Notional Rent,PRC DELEGATED CO-COMMISSIONING,BURNGREAVE SURGERY,28878518,"6,622.92 "
Department of Health,NHS Sheffield CCG,30/09/2019,C&M-PMS Prem Rates,PRC DELEGATED CO-COMMISSIONING,BURNGREAVE SURGERY,28878518,"2,140.00 "
Department of Health,NHS Sheffield CCG,30/09/2019,C&M-PMS Prem Water Rates,PRC DELEGATED CO-COMMISSIONING,BURNGREAVE SURGERY,28878518,602.85 
Department of Health,NHS Sheffield CCG,30/09/2019,C&M-PMS QOF Aspiration,PRC DELEGATED CO-COMMISSIONING,BURNGREAVE SURGERY,28878518,"5,288.96 "
Department of Health,NHS Sheffield CCG,30/09/2019,C&M-GMS Cost of Drugs -Prescribing,LOCAL ENHANCED SERVICES,CARTERKNOWLE & DORE MEDICAL PRACTICE,29113085,"2,468.16 "
Department of Health,NHS Sheffield CCG,30/09/2019,C&M-GMS Global Sum,PRC DELEGATED CO-COMMISSIONING,CARTERKNOWLE & DORE MEDICAL PRACTICE,29113085,"84,559.05 "
Department of Health,NHS Sheffield CCG,30/09/2019,C&M-GMS MPIG Correction Factor,PRC DELEGATED CO-COMMISSIONING,CARTERKNOWLE & DORE MEDICAL PRACTICE,29113085,747.29 
Department of Health,NHS Sheffield CCG,30/09/2019,C&M-GMS PCN DES Participation,PRC DELEGATED CO-COMMISSIONING,CARTERKNOWLE & DORE MEDICAL PRACTICE,29113085,"1,742.96 "
Department of Health,NHS Sheffield CCG,30/09/2019,C&M-GMS PCO Seniority,PRC DELEGATED CO-COMMISSIONING,CARTERKNOWLE & DORE MEDICAL PRACTICE,29113085,"2,072.83 "
Department of Health,NHS Sheffield CCG,30/09/2019,C&M-GMS Prem Notional Rent,PRC DELEGATED CO-COMMISSIONING,CARTERKNOWLE & DORE MEDICAL PRACTICE,29113085,"7,596.50 "
Department of Health,NHS Sheffield CCG,30/09/2019,C&M-GMS Prem Rates,PRC DELEGATED CO-COMMISSIONING,CARTERKNOWLE & DORE MEDICAL PRACTICE,29113085,"1,961.00 "
Department of Health,NHS Sheffield CCG,30/09/2019,C&M-GMS Prof Fees Prescribing,PRC DELEGATED CO-COMMISSIONING,CARTERKNOWLE & DORE MEDICAL PRACTICE,29113085,158.74 
Department of Health,NHS Sheffield CCG,30/09/2019,C&M-GMS QOF Aspiration,PRC DELEGATED CO-COMMISSIONING,CARTERKNOWLE & DORE MEDICAL PRACTICE,29113085,"10,055.02 "
Department of Health,NHS Sheffield CCG,30/09/2019,C&M-GMS Cost of Drugs -Prescribing,LOCAL ENHANCED SERVICES,CHARNOCK HEALTH PRIMARY CARE CENTRE,29113082,"1,331.08 "
Department of Health,NHS Sheffield CCG,30/09/2019,C&M-GMS Global Sum,PRC DELEGATED CO-COMMISSIONING,CHARNOCK HEALTH PRIMARY CARE CENTRE,29113082,"43,215.93 "
Department of Health,NHS Sheffield CCG,30/09/2019,C&M-GMS MPIG Correction Factor,PRC DELEGATED CO-COMMISSIONING,CHARNOCK HEALTH PRIMARY CARE CENTRE,29113082,206.62 
Department of Health,NHS Sheffield CCG,30/09/2019,C&M-GMS PCN DES Participation,PRC DELEGATED CO-COMMISSIONING,CHARNOCK HEALTH PRIMARY CARE CENTRE,29113082,869.33 
Department of Health,NHS Sheffield CCG,30/09/2019,C&M-GMS PCO Other,PRC DELEGATED CO-COMMISSIONING,CHARNOCK HEALTH PRIMARY CARE CENTRE,29113082,363.80 
Department of Health,NHS Sheffield CCG,30/09/2019,C&M-GMS PCO Seniority,PRC DELEGATED CO-COMMISSIONING,CHARNOCK HEALTH PRIMARY CARE CENTRE,29113082,"1,234.38 "
Department of Health,NHS Sheffield CCG,30/09/2019,C&M-GMS Prem Notional Rent,PRC DELEGATED CO-COMMISSIONING,CHARNOCK HEALTH PRIMARY CARE CENTRE,29113082,335.00 
Department of Health,NHS Sheffield CCG,30/09/2019,C&M-GMS Prem Rates,PRC DELEGATED CO-COMMISSIONING,CHARNOCK HEALTH PRIMARY CARE CENTRE,29113082,"1,547.00 "
Department of Health,NHS Sheffield CCG,30/09/2019,C&M-GMS Prem Water Rates,PRC DELEGATED CO-COMMISSIONING,CHARNOCK HEALTH PRIMARY CARE CENTRE,29113082,129.12 
Department of Health,NHS Sheffield CCG,30/09/2019,C&M-GMS Prof Fees Prescribing,PRC DELEGATED CO-COMMISSIONING,CHARNOCK HEALTH PRIMARY CARE CENTRE,29113082,211.64 
Department of Health,NHS Sheffield CCG,30/09/2019,C&M-GMS QOF Aspiration,PRC DELEGATED CO-COMMISSIONING,CHARNOCK HEALTH PRIMARY CARE CENTRE,29113082,"4,932.79 "
Department of Health,NHS Sheffield CCG,30/09/2019,Hcare Srv Rec Fdtn Trust-Contract Baseline,ACUTE COMMISSIONING,CHESTERFIELD ROYAL HOSPITAL NHS FOUNDATION TRUST,29039102,"318,586.00 "
Department of Health,NHS Sheffield CCG,30/09/2019,Clinical&Medical-Independent Sector,ACUTE COMMISSIONING,CLAREMONT HOSPITAL,28906744,"66,095.00 "
Department of Health,NHS Sheffield CCG,30/09/2019,C&M-APMS Contract Value,PRC DELEGATED CO-COMMISSIONING,CLOVER CITY PRACTICE,28878590,"27,537.70 "
Department of Health,NHS Sheffield CCG,30/09/2019,C&M-APMS PCN DES Participation,PRC DELEGATED CO-COMMISSIONING,CLOVER CITY PRACTICE,28878590,529.90 
Department of Health,NHS Sheffield CCG,30/09/2019,C&M-PMS QOF Aspiration,PRC DELEGATED CO-COMMISSIONING,CLOVER CITY PRACTICE,28878590,"1,537.57 "
Department of Health,NHS Sheffield CCG,30/09/2019,C&M-APMS Contract Value,PRC DELEGATED CO-COMMISSIONING,CLOVER GROUP PRACTICE,28878522,"127,049.89 "
Department of Health,NHS Sheffield CCG,30/09/2019,C&M-APMS PCN DES Participation,PRC DELEGATED CO-COMMISSIONING,CLOVER GROUP PRACTICE,28878522,"2,421.56 "
Department of Health,NHS Sheffield CCG,30/09/2019,C&M-APMS Prem Actual Rent,PRC DELEGATED CO-COMMISSIONING,CLOVER GROUP PRACTICE,28878522,"7,973.85 "
Department of Health,NHS Sheffield CCG,30/09/2019,C&M-APMS Prem Healthcentre Rent,PRC DELEGATED CO-COMMISSIONING,CLOVER GROUP PRACTICE,28878522,"59,658.86 "
Department of Health,NHS Sheffield CCG,30/09/2019,C&M-APMS Prem Notional Rent,PRC DELEGATED CO-COMMISSIONING,CLOVER GROUP PRACTICE,28878522,"2,804.17 "
Department of Health,NHS Sheffield CCG,30/09/2019,C&M-PMS DES Learn Dsblty Hlth Chk,PRC DELEGATED CO-COMMISSIONING,CLOVER GROUP PRACTICE,28878522,700.00 
Department of Health,NHS Sheffield CCG,30/09/2019,C&M-PMS QOF Aspiration,PRC DELEGATED CO-COMMISSIONING,CLOVER GROUP PRACTICE,28878522,"11,480.20 "
Department of Health,NHS Sheffield CCG,30/09/2019,Voids and Subsidies,PRC DELEGATED CO-COMMISSIONING,COMMUNITY HEALTH PARTNERSHIPS LTD,28807492,"37,050.51 "
Department of Health,NHS Sheffield CCG,30/09/2019,Voids and Subsidies,RECHARGES NHS PROPERTY SERVICES LTD,COMMUNITY HEALTH PARTNERSHIPS LTD,28807492,"117,396.67 "
Department of Health,NHS Sheffield CCG,30/09/2019,Cont Care-Funded Nursing Care Allow,FUNDED NURSING CARE,COUNTRY COURT CARE LTD,28906586,"26,607.75 "
Department of Health,NHS Sheffield CCG,30/09/2019,C&M-GMS Cost of Drugs -Prescribing,LOCAL ENHANCED SERVICES,CROOKES PRACTICE,29113090,574.69 
Department of Health,NHS Sheffield CCG,30/09/2019,C&M-GMS Global Sum,PRC DELEGATED CO-COMMISSIONING,CROOKES PRACTICE,29113090,"50,840.80 "
Department of Health,NHS Sheffield CCG,30/09/2019,C&M-GMS MPIG Correction Factor,PRC DELEGATED CO-COMMISSIONING,CROOKES PRACTICE,29113090,772.96 
Department of Health,NHS Sheffield CCG,30/09/2019,C&M-GMS PCN DES Participation,PRC DELEGATED CO-COMMISSIONING,CROOKES PRACTICE,29113090,"1,040.55 "
Department of Health,NHS Sheffield CCG,30/09/2019,C&M-GMS PCO Other,PRC DELEGATED CO-COMMISSIONING,CROOKES PRACTICE,29113090,512.60 
Department of Health,NHS Sheffield CCG,30/09/2019,C&M-GMS PCO Seniority,PRC DELEGATED CO-COMMISSIONING,CROOKES PRACTICE,29113090,"1,259.92 "
Department of Health,NHS Sheffield CCG,30/09/2019,C&M-GMS Prem Notional Rent,PRC DELEGATED CO-COMMISSIONING,CROOKES PRACTICE,29113090,"3,874.67 "
Department of Health,NHS Sheffield CCG,30/09/2019,C&M-GMS Prem Rates,PRC DELEGATED CO-COMMISSIONING,CROOKES PRACTICE,29113090,"1,510.00 "
Department of Health,NHS Sheffield CCG,30/09/2019,C&M-GMS Prem Water Rates,PRC DELEGATED CO-COMMISSIONING,CROOKES PRACTICE,29113090,223.87 
Department of Health,NHS Sheffield CCG,30/09/2019,C&M-GMS Prof Fees Prescribing,PRC DELEGATED CO-COMMISSIONING,CROOKES PRACTICE,29113090,125.07 
Department of Health,NHS Sheffield CCG,30/09/2019,C&M-GMS QOF Aspiration,PRC DELEGATED CO-COMMISSIONING,CROOKES PRACTICE,29113090,"4,885.77 "
Department of Health,NHS Sheffield CCG,30/09/2019,C&M-PMS Contract Value,PRC DELEGATED CO-COMMISSIONING,DEEPCAR MEDICAL CENTRE,28878524,"41,997.92 "
Department of Health,NHS Sheffield CCG,30/09/2019,C&M-PMS Out of Hours Opt Outs,PRC DELEGATED CO-COMMISSIONING,DEEPCAR MEDICAL CENTRE,28878524,12.61 
Department of Health,NHS Sheffield CCG,30/09/2019,C&M-PMS PCN DES Participation,PRC DELEGATED CO-COMMISSIONING,DEEPCAR MEDICAL CENTRE,28878524,789.85 
Department of Health,NHS Sheffield CCG,30/09/2019,C&M-PMS PCO Seniority,PRC DELEGATED CO-COMMISSIONING,DEEPCAR MEDICAL CENTRE,28878524,989.03 
Department of Health,NHS Sheffield CCG,30/09/2019,C&M-PMS Prem Healthcentre Rent,PRC DELEGATED CO-COMMISSIONING,DEEPCAR MEDICAL CENTRE,28878524,"29,915.44 "
Department of Health,NHS Sheffield CCG,30/09/2019,C&M-PMS QOF Aspiration,PRC DELEGATED CO-COMMISSIONING,DEEPCAR MEDICAL CENTRE,28878524,"4,298.67 "
Department of Health,NHS Sheffield CCG,30/09/2019,C&M-GMS Cost of Drugs -Prescribing,LOCAL ENHANCED SERVICES,DEVONSHIRE GREEN MEDICAL CENTRE,29113093,992.89 
Department of Health,NHS Sheffield CCG,30/09/2019,C&M-GMS DES Extended Hours Access,PRC DELEGATED CO-COMMISSIONING,DEVONSHIRE GREEN MEDICAL CENTRE,29113093,"6,816.36 "
Department of Health,NHS Sheffield CCG,30/09/2019,C&M-GMS Global Sum,PRC DELEGATED CO-COMMISSIONING,DEVONSHIRE GREEN MEDICAL CENTRE,29113093,"45,951.96 "
Department of Health,NHS Sheffield CCG,30/09/2019,C&M-GMS MPIG Correction Factor,PRC DELEGATED CO-COMMISSIONING,DEVONSHIRE GREEN MEDICAL CENTRE,29113093,"1,615.60 "
Department of Health,NHS Sheffield CCG,30/09/2019,C&M-GMS PCN DES Clinical Director,PRC DELEGATED CO-COMMISSIONING,DEVONSHIRE GREEN MEDICAL CENTRE,29113093,"3,188.00 "
Department of Health,NHS Sheffield CCG,30/09/2019,C&M-GMS PCN DES PCN support,LOCAL ENHANCED SERVICES,DEVONSHIRE GREEN MEDICAL CENTRE,29113093,"6,977.63 "
Department of Health,NHS Sheffield CCG,30/09/2019,C&M-GMS PCN DES Participation,PRC DELEGATED CO-COMMISSIONING,DEVONSHIRE GREEN MEDICAL CENTRE,29113093,931.75 
Department of Health,NHS Sheffield CCG,30/09/2019,C&M-GMS PCO Seniority,PRC DELEGATED CO-COMMISSIONING,DEVONSHIRE GREEN MEDICAL CENTRE,29113093,"1,785.92 "
Department of Health,NHS Sheffield CCG,30/09/2019,C&M-GMS Prem Notional Rent,PRC DELEGATED CO-COMMISSIONING,DEVONSHIRE GREEN MEDICAL CENTRE,29113093,"5,987.50 "
Department of Health,NHS Sheffield CCG,30/09/2019,C&M-GMS Prem Rates,PRC DELEGATED CO-COMMISSIONING,DEVONSHIRE GREEN MEDICAL CENTRE,29113093,975.00 
Department of Health,NHS Sheffield CCG,30/09/2019,C&M-GMS Prof Fees Prescribing,PRC DELEGATED CO-COMMISSIONING,DEVONSHIRE GREEN MEDICAL CENTRE,29113093,187.60 
Department of Health,NHS Sheffield CCG,30/09/2019,C&M-GMS QOF Aspiration,PRC DELEGATED CO-COMMISSIONING,DEVONSHIRE GREEN MEDICAL CENTRE,29113093,"4,805.68 "
Department of Health,NHS Sheffield CCG,30/09/2019,Hcare Srv Rec Fdtn Trust-Contract Baseline,ACUTE COMMISSIONING,DONCASTER AND BASSETLAW HOSPITALS NHS FOUNDATION TRUST,28929071,"44,305.00 "
Department of Health,NHS Sheffield CCG,30/09/2019,C&M-PMS Contract Value,PRC DELEGATED CO-COMMISSIONING,DOVERCOURT SURGERY,28878526,"73,204.78 "
Department of Health,NHS Sheffield CCG,30/09/2019,C&M-PMS DES Learn Dsblty Hlth Chk,PRC DELEGATED CO-COMMISSIONING,DOVERCOURT SURGERY,28878526,"2,240.00 "
Department of Health,NHS Sheffield CCG,30/09/2019,C&M-PMS Out of Hours Opt Outs,PRC DELEGATED CO-COMMISSIONING,DOVERCOURT SURGERY,28878526,8.40 
Department of Health,NHS Sheffield CCG,30/09/2019,C&M-PMS PCN DES Participation,PRC DELEGATED CO-COMMISSIONING,DOVERCOURT SURGERY,28878526,"1,392.36 "
Department of Health,NHS Sheffield CCG,30/09/2019,C&M-PMS PCO Other,PRC DELEGATED CO-COMMISSIONING,DOVERCOURT SURGERY,28878526,536.10 
Department of Health,NHS Sheffield CCG,30/09/2019,C&M-PMS PCO Seniority,PRC DELEGATED CO-COMMISSIONING,DOVERCOURT SURGERY,28878526,"1,117.52 "
Department of Health,NHS Sheffield CCG,30/09/2019,C&M-PMS Prem Actual Rent,PRC DELEGATED CO-COMMISSIONING,DOVERCOURT SURGERY,28878526,"12,400.00 "
Department of Health,NHS Sheffield CCG,30/09/2019,C&M-PMS Prem Notional Rent,PRC DELEGATED CO-COMMISSIONING,DOVERCOURT SURGERY,28878526,"1,708.33 "
Department of Health,NHS Sheffield CCG,30/09/2019,C&M-PMS QOF Aspiration,PRC DELEGATED CO-COMMISSIONING,DOVERCOURT SURGERY,28878526,"7,675.00 "
Department of Health,NHS Sheffield CCG,30/09/2019,C&M-PMS Contract Value,PRC DELEGATED CO-COMMISSIONING,DR MEHROTRA & PARTNER,28878528,"26,407.40 "
Department of Health,NHS Sheffield CCG,30/09/2019,C&M-PMS PCN DES Participation,PRC DELEGATED CO-COMMISSIONING,DR MEHROTRA & PARTNER,28878528,501.42 
Department of Health,NHS Sheffield CCG,30/09/2019,C&M-PMS PCO Other,PRC DELEGATED CO-COMMISSIONING,DR MEHROTRA & PARTNER,28878528,237.80 
Department of Health,NHS Sheffield CCG,30/09/2019,C&M-PMS PCO Seniority,PRC DELEGATED CO-COMMISSIONING,DR MEHROTRA & PARTNER,28878528,446.56 
Department of Health,NHS Sheffield CCG,30/09/2019,C&M-PMS Prem Actual Rent,PRC DELEGATED CO-COMMISSIONING,DR MEHROTRA & PARTNER,28878528,"2,650.00 "
Department of Health,NHS Sheffield CCG,30/09/2019,C&M-PMS Prem Notional Rent,PRC DELEGATED CO-COMMISSIONING,DR MEHROTRA & PARTNER,28878528,"5,157.29 "
Department of Health,NHS Sheffield CCG,30/09/2019,C&M-PMS Prem Rates,PRC DELEGATED CO-COMMISSIONING,DR MEHROTRA & PARTNER,28878528,"1,606.00 "
Department of Health,NHS Sheffield CCG,30/09/2019,C&M-PMS QOF Aspiration,PRC DELEGATED CO-COMMISSIONING,DR MEHROTRA & PARTNER,28878528,"2,763.65 "
Department of Health,NHS Sheffield CCG,30/09/2019,C&M-PMS Contract Value,PRC DELEGATED CO-COMMISSIONING,DR MILNER & PARTNERS,28878530,"75,997.17 "
Department of Health,NHS Sheffield CCG,30/09/2019,C&M-PMS Out of Hours Opt Outs,PRC DELEGATED CO-COMMISSIONING,DR MILNER & PARTNERS,28878530,7.01 
Department of Health,NHS Sheffield CCG,30/09/2019,C&M-PMS PCN DES Participation,PRC DELEGATED CO-COMMISSIONING,DR MILNER & PARTNERS,28878530,"1,435.93 "
Department of Health,NHS Sheffield CCG,30/09/2019,C&M-PMS PCO Seniority,PRC DELEGATED CO-COMMISSIONING,DR MILNER & PARTNERS,28878530,"1,219.35 "
Department of Health,NHS Sheffield CCG,30/09/2019,C&M-PMS Prem Actual Rent,PRC DELEGATED CO-COMMISSIONING,DR MILNER & PARTNERS,28878530,"11,382.00 "
Department of Health,NHS Sheffield CCG,30/09/2019,C&M-PMS Prem Notional Rent,PRC DELEGATED CO-COMMISSIONING,DR MILNER & PARTNERS,28878530,"4,462.42 "
Department of Health,NHS Sheffield CCG,30/09/2019,C&M-PMS Prem Rates,PRC DELEGATED CO-COMMISSIONING,DR MILNER & PARTNERS,28878530,"2,593.00 "
Department of Health,NHS Sheffield CCG,30/09/2019,C&M-PMS QOF Aspiration,PRC DELEGATED CO-COMMISSIONING,DR MILNER & PARTNERS,28878530,"6,513.90 "
Department of Health,NHS Sheffield CCG,30/09/2019,C&M-GMS Cost of Drugs -Prescribing,LOCAL ENHANCED SERVICES,DUKE MEDICAL CENTRE,29113100,"1,749.27 "
Department of Health,NHS Sheffield CCG,30/09/2019,C&M-GMS DES Learn Dsblty Hlth Chk,PRC DELEGATED CO-COMMISSIONING,DUKE MEDICAL CENTRE,29113100,"1,400.00 "
Department of Health,NHS Sheffield CCG,30/09/2019,C&M-GMS Global Sum,PRC DELEGATED CO-COMMISSIONING,DUKE MEDICAL CENTRE,29113100,"58,727.99 "
Department of Health,NHS Sheffield CCG,30/09/2019,C&M-GMS MPIG Correction Factor,PRC DELEGATED CO-COMMISSIONING,DUKE MEDICAL CENTRE,29113100,306.25 
Department of Health,NHS Sheffield CCG,30/09/2019,C&M-GMS PCN DES Participation,PRC DELEGATED CO-COMMISSIONING,DUKE MEDICAL CENTRE,29113100,"1,138.79 "
Department of Health,NHS Sheffield CCG,30/09/2019,C&M-GMS PCO Other,PRC DELEGATED CO-COMMISSIONING,DUKE MEDICAL CENTRE,29113100,458.30 
Department of Health,NHS Sheffield CCG,30/09/2019,C&M-GMS PCO Seniority,PRC DELEGATED CO-COMMISSIONING,DUKE MEDICAL CENTRE,29113100,"1,184.74 "
Department of Health,NHS Sheffield CCG,30/09/2019,C&M-GMS Prem Notional Rent,PRC DELEGATED CO-COMMISSIONING,DUKE MEDICAL CENTRE,29113100,"5,721.67 "
Department of Health,NHS Sheffield CCG,30/09/2019,C&M-GMS Prem Rates,PRC DELEGATED CO-COMMISSIONING,DUKE MEDICAL CENTRE,29113100,"1,311.00 "
Department of Health,NHS Sheffield CCG,30/09/2019,C&M-GMS Prem Water Rates,PRC DELEGATED CO-COMMISSIONING,DUKE MEDICAL CENTRE,29113100,258.22 
Department of Health,NHS Sheffield CCG,30/09/2019,C&M-GMS Prof Fees Prescribing,PRC DELEGATED CO-COMMISSIONING,DUKE MEDICAL CENTRE,29113100,295.83 
Department of Health,NHS Sheffield CCG,30/09/2019,C&M-GMS QOF Aspiration,PRC DELEGATED CO-COMMISSIONING,DUKE MEDICAL CENTRE,29113100,"5,166.69 "
Department of Health,NHS Sheffield CCG,30/09/2019,C&M-PMS Contract Value,PRC DELEGATED CO-COMMISSIONING,DUNNINC ROAD SURGERY,28878532,"23,711.72 "
Department of Health,NHS Sheffield CCG,30/09/2019,C&M-PMS PCN DES Participation,PRC DELEGATED CO-COMMISSIONING,DUNNINC ROAD SURGERY,28878532,448.76 
Department of Health,NHS Sheffield CCG,30/09/2019,C&M-PMS PCO Seniority,PRC DELEGATED CO-COMMISSIONING,DUNNINC ROAD SURGERY,28878532,"1,294.87 "
Department of Health,NHS Sheffield CCG,30/09/2019,C&M-PMS Prem Notional Rent,PRC DELEGATED CO-COMMISSIONING,DUNNINC ROAD SURGERY,28878532,"1,695.83 "
Department of Health,NHS Sheffield CCG,30/09/2019,C&M-PMS QOF Aspiration,PRC DELEGATED CO-COMMISSIONING,DUNNINC ROAD SURGERY,28878532,"2,054.91 "
Department of Health,NHS Sheffield CCG,30/09/2019,C&M-PMS Contract Value,PRC DELEGATED CO-COMMISSIONING,DYKES HALL MEDICAL CENTRE,28878534,"73,046.07 "
Department of Health,NHS Sheffield CCG,30/09/2019,C&M-PMS DES Extended Hours Access,PRC DELEGATED CO-COMMISSIONING,DYKES HALL MEDICAL CENTRE,28878534,"4,412.49 "
Department of Health,NHS Sheffield CCG,30/09/2019,C&M-PMS Out of Hours Opt Outs,PRC DELEGATED CO-COMMISSIONING,DYKES HALL MEDICAL CENTRE,28878534,35.76 
Department of Health,NHS Sheffield CCG,30/09/2019,C&M-PMS PCN DES Clinical Director,PRC DELEGATED CO-COMMISSIONING,DYKES HALL MEDICAL CENTRE,28878534,"2,063.71 "
Department of Health,NHS Sheffield CCG,30/09/2019,C&M-PMS PCN DES PCN support,LOCAL ENHANCED SERVICES,DYKES HALL MEDICAL CENTRE,28878534,"4,516.88 "
Department of Health,NHS Sheffield CCG,30/09/2019,C&M-PMS PCN DES Participation,PRC DELEGATED CO-COMMISSIONING,DYKES HALL MEDICAL CENTRE,28878534,"1,386.86 "
Department of Health,NHS Sheffield CCG,30/09/2019,C&M-PMS PCO Seniority,PRC DELEGATED CO-COMMISSIONING,DYKES HALL MEDICAL CENTRE,28878534,"1,504.83 "
Department of Health,NHS Sheffield CCG,30/09/2019,C&M-PMS Prem Notional Rent,PRC DELEGATED CO-COMMISSIONING,DYKES HALL MEDICAL CENTRE,28878534,"5,377.08 "
Department of Health,NHS Sheffield CCG,30/09/2019,C&M-PMS QOF Aspiration,PRC DELEGATED CO-COMMISSIONING,DYKES HALL MEDICAL CENTRE,28878534,"8,323.49 "
Department of Health,NHS Sheffield CCG,30/09/2019,C&M-PMS Contract Value,PRC DELEGATED CO-COMMISSIONING,EAST BANK MEDICAL CENTRE,28878536,"48,669.38 "
Department of Health,NHS Sheffield CCG,30/09/2019,C&M-PMS DES Learn Dsblty Hlth Chk,PRC DELEGATED CO-COMMISSIONING,EAST BANK MEDICAL CENTRE,28878536,840.00 
Department of Health,NHS Sheffield CCG,30/09/2019,C&M-PMS PCN DES Participation,PRC DELEGATED CO-COMMISSIONING,EAST BANK MEDICAL CENTRE,28878536,914.08 
Department of Health,NHS Sheffield CCG,30/09/2019,C&M-PMS PCO Seniority,PRC DELEGATED CO-COMMISSIONING,EAST BANK MEDICAL CENTRE,28878536,832.41 
Department of Health,NHS Sheffield CCG,30/09/2019,C&M-PMS Prem Notional Rent,PRC DELEGATED CO-COMMISSIONING,EAST BANK MEDICAL CENTRE,28878536,"10,583.33 "
Department of Health,NHS Sheffield CCG,30/09/2019,C&M-PMS Prem Rates,PRC DELEGATED CO-COMMISSIONING,EAST BANK MEDICAL CENTRE,28878536,"2,898.00 "
Department of Health,NHS Sheffield CCG,30/09/2019,C&M-PMS QOF Aspiration,PRC DELEGATED CO-COMMISSIONING,EAST BANK MEDICAL CENTRE,28878536,"5,026.31 "
Department of Health,NHS Sheffield CCG,30/09/2019,C&M-GMS Cost of Drugs -Prescribing,LOCAL ENHANCED SERVICES,ECCLESFIELD GROUP PRACTICE,29113096,"1,703.97 "
Department of Health,NHS Sheffield CCG,30/09/2019,C&M-GMS DES Extended Hours Access,PRC DELEGATED CO-COMMISSIONING,ECCLESFIELD GROUP PRACTICE,29113096,"5,190.33 "
Department of Health,NHS Sheffield CCG,30/09/2019,C&M-GMS Global Sum,PRC DELEGATED CO-COMMISSIONING,ECCLESFIELD GROUP PRACTICE,29113096,"68,946.99 "
Department of Health,NHS Sheffield CCG,30/09/2019,C&M-GMS PCN DES Clinical Director,PRC DELEGATED CO-COMMISSIONING,ECCLESFIELD GROUP PRACTICE,29113096,"2,427.51 "
Department of Health,NHS Sheffield CCG,30/09/2019,C&M-GMS PCN DES PCN support,LOCAL ENHANCED SERVICES,ECCLESFIELD GROUP PRACTICE,29113096,"5,313.13 "
Department of Health,NHS Sheffield CCG,30/09/2019,C&M-GMS PCN DES Participation,PRC DELEGATED CO-COMMISSIONING,ECCLESFIELD GROUP PRACTICE,29113096,"1,400.97 "
Department of Health,NHS Sheffield CCG,30/09/2019,C&M-GMS PCO Other,PRC DELEGATED CO-COMMISSIONING,ECCLESFIELD GROUP PRACTICE,29113096,525.30 
Department of Health,NHS Sheffield CCG,30/09/2019,C&M-GMS PCO Seniority,PRC DELEGATED CO-COMMISSIONING,ECCLESFIELD GROUP PRACTICE,29113096,"1,344.48 "
Department of Health,NHS Sheffield CCG,30/09/2019,C&M-GMS Prem Notional Rent,PRC DELEGATED CO-COMMISSIONING,ECCLESFIELD GROUP PRACTICE,29113096,"6,805.42 "
Department of Health,NHS Sheffield CCG,30/09/2019,C&M-GMS Prem Rates,PRC DELEGATED CO-COMMISSIONING,ECCLESFIELD GROUP PRACTICE,29113096,"1,527.00 "
Department of Health,NHS Sheffield CCG,30/09/2019,C&M-GMS Prem Water Rates,PRC DELEGATED CO-COMMISSIONING,ECCLESFIELD GROUP PRACTICE,29113096,171.27 
Department of Health,NHS Sheffield CCG,30/09/2019,C&M-GMS Prof Fees Prescribing,PRC DELEGATED CO-COMMISSIONING,ECCLESFIELD GROUP PRACTICE,29113096,269.39 
Department of Health,NHS Sheffield CCG,30/09/2019,C&M-GMS QOF Aspiration,PRC DELEGATED CO-COMMISSIONING,ECCLESFIELD GROUP PRACTICE,29113096,"9,179.49 "
Department of Health,NHS Sheffield CCG,30/09/2019,C&M-GMS Cost of Drugs -Prescribing,LOCAL ENHANCED SERVICES,ELM LANE SURGERY,29113098,"1,507.83 "
Department of Health,NHS Sheffield CCG,30/09/2019,C&M-GMS Global Sum,PRC DELEGATED CO-COMMISSIONING,ELM LANE SURGERY,29113098,"40,467.95 "
Department of Health,NHS Sheffield CCG,30/09/2019,C&M-GMS MPIG Correction Factor,PRC DELEGATED CO-COMMISSIONING,ELM LANE SURGERY,29113098,419.26 
Department of Health,NHS Sheffield CCG,30/09/2019,C&M-GMS PCN DES Participation,PRC DELEGATED CO-COMMISSIONING,ELM LANE SURGERY,29113098,821.44 
Department of Health,NHS Sheffield CCG,30/09/2019,C&M-GMS Prem Notional Rent,PRC DELEGATED CO-COMMISSIONING,ELM LANE SURGERY,29113098,"5,305.50 "
Department of Health,NHS Sheffield CCG,30/09/2019,C&M-GMS Prof Fees Prescribing,PRC DELEGATED CO-COMMISSIONING,ELM LANE SURGERY,29113098,182.79 
Department of Health,NHS Sheffield CCG,30/09/2019,C&M-GMS QOF Aspiration,PRC DELEGATED CO-COMMISSIONING,ELM LANE SURGERY,29113098,"4,720.25 "
Department of Health,NHS Sheffield CCG,30/09/2019,Cont Care-Physical Disab (<65),CHC ADULT FULLY FUNDED,FAIRWINDS HEALTH CARE LTD,28906694,"37,939.03 "
Department of Health,NHS Sheffield CCG,30/09/2019,C&M-PMS Contract Value,PRC DELEGATED CO-COMMISSIONING,FALKLAND HOUSE,28878540,"26,085.22 "
Department of Health,NHS Sheffield CCG,30/09/2019,C&M-PMS PCN DES Participation,PRC DELEGATED CO-COMMISSIONING,FALKLAND HOUSE,28878540,495.54 
Department of Health,NHS Sheffield CCG,30/09/2019,C&M-PMS PCO Other,PRC DELEGATED CO-COMMISSIONING,FALKLAND HOUSE,28878540,276.40 
Department of Health,NHS Sheffield CCG,30/09/2019,C&M-PMS PCO Seniority,PRC DELEGATED CO-COMMISSIONING,FALKLAND HOUSE,28878540,"1,351.41 "
Department of Health,NHS Sheffield CCG,30/09/2019,C&M-PMS Prem Notional Rent,PRC DELEGATED CO-COMMISSIONING,FALKLAND HOUSE,28878540,"1,866.67 "
Department of Health,NHS Sheffield CCG,30/09/2019,C&M-PMS Prem Rates,PRC DELEGATED CO-COMMISSIONING,FALKLAND HOUSE,28878540,773.00 
Department of Health,NHS Sheffield CCG,30/09/2019,C&M-PMS QOF Aspiration,PRC DELEGATED CO-COMMISSIONING,FALKLAND HOUSE,28878540,"2,925.24 "
Department of Health,NHS Sheffield CCG,30/09/2019,C&M-GMS Cost of Drugs -Prescribing,LOCAL ENHANCED SERVICES,FAR LANE MEDICAL CENTRE,29113107,421.07 
Department of Health,NHS Sheffield CCG,30/09/2019,C&M-GMS Global Sum,PRC DELEGATED CO-COMMISSIONING,FAR LANE MEDICAL CENTRE,29113107,"55,556.46 "
Department of Health,NHS Sheffield CCG,30/09/2019,C&M-GMS PCN DES Participation,PRC DELEGATED CO-COMMISSIONING,FAR LANE MEDICAL CENTRE,29113107,"1,138.48 "
Department of Health,NHS Sheffield CCG,30/09/2019,C&M-GMS PCO Other,PRC DELEGATED CO-COMMISSIONING,FAR LANE MEDICAL CENTRE,29113107,462.30 
Department of Health,NHS Sheffield CCG,30/09/2019,C&M-GMS PCO Seniority,PRC DELEGATED CO-COMMISSIONING,FAR LANE MEDICAL CENTRE,29113107,"3,033.31 "
Department of Health,NHS Sheffield CCG,30/09/2019,C&M-GMS Prem Notional Rent,PRC DELEGATED CO-COMMISSIONING,FAR LANE MEDICAL CENTRE,29113107,"3,462.50 "
Department of Health,NHS Sheffield CCG,30/09/2019,C&M-GMS Prem Rates,PRC DELEGATED CO-COMMISSIONING,FAR LANE MEDICAL CENTRE,29113107,"1,184.00 "
Department of Health,NHS Sheffield CCG,30/09/2019,C&M-GMS Prof Fees Prescribing,PRC DELEGATED CO-COMMISSIONING,FAR LANE MEDICAL CENTRE,29113107,67.35 
Department of Health,NHS Sheffield CCG,30/09/2019,C&M-GMS QOF Aspiration,PRC DELEGATED CO-COMMISSIONING,FAR LANE MEDICAL CENTRE,29113107,"5,719.80 "
Department of Health,NHS Sheffield CCG,30/09/2019,C&M-PMS Contract Value,PRC DELEGATED CO-COMMISSIONING,FIRTH PARK SURGERY,28878537,(441.73)
Department of Health,NHS Sheffield CCG,30/09/2019,C&M-PMS GP Statutory Levy,PRC DELEGATED CO-COMMISSIONING,FIRTH PARK SURGERY,28878537,(352.31)
Department of Health,NHS Sheffield CCG,30/09/2019,C&M-PMS Out of Hours Opt Outs,PRC DELEGATED CO-COMMISSIONING,FIRTH PARK SURGERY,28878537,"(3,617.62)"
Department of Health,NHS Sheffield CCG,30/09/2019,C&M-PMS Contract Value,PRC DELEGATED CO-COMMISSIONING,FIRTH PARK SURGERY,28878538,"74,885.12 "
Department of Health,NHS Sheffield CCG,30/09/2019,C&M-PMS DES Learn Dsblty Hlth Chk,PRC DELEGATED CO-COMMISSIONING,FIRTH PARK SURGERY,28878538,"1,680.00 "
Department of Health,NHS Sheffield CCG,30/09/2019,C&M-PMS Out of Hours Opt Outs,PRC DELEGATED CO-COMMISSIONING,FIRTH PARK SURGERY,28878538,21.34 
Department of Health,NHS Sheffield CCG,30/09/2019,C&M-PMS PCN DES Participation,PRC DELEGATED CO-COMMISSIONING,FIRTH PARK SURGERY,28878538,"1,468.51 "
Department of Health,NHS Sheffield CCG,30/09/2019,C&M-PMS PCO Seniority,PRC DELEGATED CO-COMMISSIONING,FIRTH PARK SURGERY,28878538,"1,858.87 "
Department of Health,NHS Sheffield CCG,30/09/2019,C&M-PMS Prem Notional Rent,PRC DELEGATED CO-COMMISSIONING,FIRTH PARK SURGERY,28878538,"4,500.00 "
Department of Health,NHS Sheffield CCG,30/09/2019,C&M-PMS Prem Rates,PRC DELEGATED CO-COMMISSIONING,FIRTH PARK SURGERY,28878538,"1,360.00 "
Department of Health,NHS Sheffield CCG,30/09/2019,C&M-PMS Prem Water Rates,PRC DELEGATED CO-COMMISSIONING,FIRTH PARK SURGERY,28878538,214.84 
Department of Health,NHS Sheffield CCG,30/09/2019,C&M-PMS QOF Aspiration,PRC DELEGATED CO-COMMISSIONING,FIRTH PARK SURGERY,28878538,"7,493.92 "
Department of Health,NHS Sheffield CCG,30/09/2019,C&M-PMS Contract Value,PRC DELEGATED CO-COMMISSIONING,FORGE HEALTH GROUP,28878587,(213.91)
Department of Health,NHS Sheffield CCG,30/09/2019,C&M-PMS GP Statutory Levy,PRC DELEGATED CO-COMMISSIONING,FORGE HEALTH GROUP,28878587,(509.71)
Department of Health,NHS Sheffield CCG,30/09/2019,C&M-PMS Out of Hours Opt Outs,PRC DELEGATED CO-COMMISSIONING,FORGE HEALTH GROUP,28878587,"(5,616.33)"
Department of Health,NHS Sheffield CCG,30/09/2019,C&M-PMS Contract Value,PRC DELEGATED CO-COMMISSIONING,FORGE HEALTH GROUP,28878588,"119,176.77 "
Department of Health,NHS Sheffield CCG,30/09/2019,C&M-PMS DES Extended Hours Access,PRC DELEGATED CO-COMMISSIONING,FORGE HEALTH GROUP,28878588,"6,869.48 "
Department of Health,NHS Sheffield CCG,30/09/2019,C&M-PMS Out of Hours Opt Outs,PRC DELEGATED CO-COMMISSIONING,FORGE HEALTH GROUP,28878588,10.15 
Department of Health,NHS Sheffield CCG,30/09/2019,C&M-PMS PCN DES Clinical Director,PRC DELEGATED CO-COMMISSIONING,FORGE HEALTH GROUP,28878588,"3,212.84 "
Department of Health,NHS Sheffield CCG,30/09/2019,C&M-PMS PCN DES PCN support,LOCAL ENHANCED SERVICES,FORGE HEALTH GROUP,28878588,"7,032.00 "
Department of Health,NHS Sheffield CCG,30/09/2019,C&M-PMS PCN DES Participation,PRC DELEGATED CO-COMMISSIONING,FORGE HEALTH GROUP,28878588,"2,225.15 "
Department of Health,NHS Sheffield CCG,30/09/2019,C&M-PMS Prem Healthcentre Rent,PRC DELEGATED CO-COMMISSIONING,FORGE HEALTH GROUP,28878588,"32,899.56 "
Department of Health,NHS Sheffield CCG,30/09/2019,C&M-PMS Prem Notional Rent,PRC DELEGATED CO-COMMISSIONING,FORGE HEALTH GROUP,28878588,"9,650.00 "
Department of Health,NHS Sheffield CCG,30/09/2019,C&M-PMS Prem Rates,PRC DELEGATED CO-COMMISSIONING,FORGE HEALTH GROUP,28878588,"1,990.00 "
Department of Health,NHS Sheffield CCG,30/09/2019,C&M-PMS Prem Water Rates,PRC DELEGATED CO-COMMISSIONING,FORGE HEALTH GROUP,28878588,483.10 
Department of Health,NHS Sheffield CCG,30/09/2019,C&M-PMS QOF Aspiration,PRC DELEGATED CO-COMMISSIONING,FORGE HEALTH GROUP,28878588,"6,964.24 "
Department of Health,NHS Sheffield CCG,30/09/2019,Cont Care-Physical Disab (<65),CHC ADULT FULLY FUNDED,FOUR SEASONS HEALTH CARE LTD,28853452,"37,102.69 "
Department of Health,NHS Sheffield CCG,30/09/2019,C&M-PMS Contract Value,PRC DELEGATED CO-COMMISSIONING,FOXHILL MEDICAL CENTRE SHEFFIELD,28878586,"51,856.01 "
Department of Health,NHS Sheffield CCG,30/09/2019,C&M-PMS PCN DES Participation,PRC DELEGATED CO-COMMISSIONING,FOXHILL MEDICAL CENTRE SHEFFIELD,28878586,977.79 
Department of Health,NHS Sheffield CCG,30/09/2019,C&M-PMS PCO Other,PRC DELEGATED CO-COMMISSIONING,FOXHILL MEDICAL CENTRE SHEFFIELD,28878586,400.60 
Department of Health,NHS Sheffield CCG,30/09/2019,C&M-PMS PCO Seniority,PRC DELEGATED CO-COMMISSIONING,FOXHILL MEDICAL CENTRE SHEFFIELD,28878586,"2,121.68 "
Department of Health,NHS Sheffield CCG,30/09/2019,C&M-PMS Prem Healthcentre Rent,PRC DELEGATED CO-COMMISSIONING,FOXHILL MEDICAL CENTRE SHEFFIELD,28878586,"46,751.17 "
Department of Health,NHS Sheffield CCG,30/09/2019,C&M-PMS QOF Aspiration,PRC DELEGATED CO-COMMISSIONING,FOXHILL MEDICAL CENTRE SHEFFIELD,28878586,"5,618.87 "
Department of Health,NHS Sheffield CCG,30/09/2019,C&M-PMS Contract Value,PRC DELEGATED CO-COMMISSIONING,GLEADLESS MEDICAL CENTRE,28878542,"68,911.89 "
Department of Health,NHS Sheffield CCG,30/09/2019,C&M-PMS Out of Hours Opt Outs,PRC DELEGATED CO-COMMISSIONING,GLEADLESS MEDICAL CENTRE,28878542,1.29 
Department of Health,NHS Sheffield CCG,30/09/2019,C&M-PMS PCN DES Participation,PRC DELEGATED CO-COMMISSIONING,GLEADLESS MEDICAL CENTRE,28878542,"1,300.70 "
Department of Health,NHS Sheffield CCG,30/09/2019,C&M-PMS PCO Other,PRC DELEGATED CO-COMMISSIONING,GLEADLESS MEDICAL CENTRE,28878542,551.40 
Department of Health,NHS Sheffield CCG,30/09/2019,C&M-PMS PCO Seniority,PRC DELEGATED CO-COMMISSIONING,GLEADLESS MEDICAL CENTRE,28878542,"2,628.15 "
Department of Health,NHS Sheffield CCG,30/09/2019,C&M-PMS Prem Notional Rent,PRC DELEGATED CO-COMMISSIONING,GLEADLESS MEDICAL CENTRE,28878542,"6,750.00 "
Department of Health,NHS Sheffield CCG,30/09/2019,C&M-PMS Prem Rates,PRC DELEGATED CO-COMMISSIONING,GLEADLESS MEDICAL CENTRE,28878542,"1,657.00 "
Department of Health,NHS Sheffield CCG,30/09/2019,C&M-PMS QOF Aspiration,PRC DELEGATED CO-COMMISSIONING,GLEADLESS MEDICAL CENTRE,28878542,"7,710.90 "
Department of Health,NHS Sheffield CCG,30/09/2019,C&M-GMS Cost of Drugs -Prescribing,LOCAL ENHANCED SERVICES,GRENOSIDE SURGERY,29113114,"2,817.16 "
Department of Health,NHS Sheffield CCG,30/09/2019,C&M-GMS DES Learn Dsblty Hlth Chk,PRC DELEGATED CO-COMMISSIONING,GRENOSIDE SURGERY,29113114,"2,100.00 "
Department of Health,NHS Sheffield CCG,30/09/2019,C&M-GMS Global Sum,PRC DELEGATED CO-COMMISSIONING,GRENOSIDE SURGERY,29113114,"58,732.94 "
Department of Health,NHS Sheffield CCG,30/09/2019,C&M-GMS PCN DES Participation,PRC DELEGATED CO-COMMISSIONING,GRENOSIDE SURGERY,29113114,"1,190.25 "
Department of Health,NHS Sheffield CCG,30/09/2019,C&M-GMS PCO Other,PRC DELEGATED CO-COMMISSIONING,GRENOSIDE SURGERY,29113114,475.50 
Department of Health,NHS Sheffield CCG,30/09/2019,C&M-GMS PCO Seniority,PRC DELEGATED CO-COMMISSIONING,GRENOSIDE SURGERY,29113114,"1,306.36 "
Department of Health,NHS Sheffield CCG,30/09/2019,C&M-GMS Prem Notional Rent,PRC DELEGATED CO-COMMISSIONING,GRENOSIDE SURGERY,29113114,"8,110.42 "
Department of Health,NHS Sheffield CCG,30/09/2019,C&M-GMS Prem Rates,PRC DELEGATED CO-COMMISSIONING,GRENOSIDE SURGERY,29113114,"2,075.00 "
Department of Health,NHS Sheffield CCG,30/09/2019,C&M-GMS Prof Fees Prescribing,PRC DELEGATED CO-COMMISSIONING,GRENOSIDE SURGERY,29113114,204.44 
Department of Health,NHS Sheffield CCG,30/09/2019,C&M-GMS QOF Aspiration,PRC DELEGATED CO-COMMISSIONING,GRENOSIDE SURGERY,29113114,"5,686.85 "
Department of Health,NHS Sheffield CCG,30/09/2019,C&M-GMS Cost of Drugs -Prescribing,LOCAL ENHANCED SERVICES,GREYSTONES MEDICAL CENTRE,29113116,131.12 
Department of Health,NHS Sheffield CCG,30/09/2019,C&M-GMS Global Sum,PRC DELEGATED CO-COMMISSIONING,GREYSTONES MEDICAL CENTRE,29113116,"19,904.44 "
Department of Health,NHS Sheffield CCG,30/09/2019,C&M-GMS MPIG Correction Factor,PRC DELEGATED CO-COMMISSIONING,GREYSTONES MEDICAL CENTRE,29113116,552.23 
Department of Health,NHS Sheffield CCG,30/09/2019,C&M-GMS PCN DES Participation,PRC DELEGATED CO-COMMISSIONING,GREYSTONES MEDICAL CENTRE,29113116,405.94 
Department of Health,NHS Sheffield CCG,30/09/2019,C&M-GMS PCO Other,PRC DELEGATED CO-COMMISSIONING,GREYSTONES MEDICAL CENTRE,29113116,263.10 
Department of Health,NHS Sheffield CCG,30/09/2019,C&M-GMS PCO Seniority,PRC DELEGATED CO-COMMISSIONING,GREYSTONES MEDICAL CENTRE,29113116,405.96 
Department of Health,NHS Sheffield CCG,30/09/2019,C&M-GMS Prem Notional Rent,PRC DELEGATED CO-COMMISSIONING,GREYSTONES MEDICAL CENTRE,29113116,"2,885.42 "
Department of Health,NHS Sheffield CCG,30/09/2019,C&M-GMS Prem Rates,PRC DELEGATED CO-COMMISSIONING,GREYSTONES MEDICAL CENTRE,29113116,606.00 
Department of Health,NHS Sheffield CCG,30/09/2019,C&M-GMS Prof Fees Prescribing,PRC DELEGATED CO-COMMISSIONING,GREYSTONES MEDICAL CENTRE,29113116,33.67 
Department of Health,NHS Sheffield CCG,30/09/2019,C&M-GMS QOF Aspiration,PRC DELEGATED CO-COMMISSIONING,GREYSTONES MEDICAL CENTRE,29113116,"2,314.72 "
Department of Health,NHS Sheffield CCG,30/09/2019,C&M-PMS Contract Value,PRC DELEGATED CO-COMMISSIONING,HACKENTHORPE MEDICAL CENTRE,28878544,"48,940.59 "
Department of Health,NHS Sheffield CCG,30/09/2019,C&M-PMS Cost of Drugs -Prescribing,LOCAL ENHANCED SERVICES,HACKENTHORPE MEDICAL CENTRE,28878544,19.99 
Department of Health,NHS Sheffield CCG,30/09/2019,C&M-PMS PCN DES Participation,PRC DELEGATED CO-COMMISSIONING,HACKENTHORPE MEDICAL CENTRE,28878544,926.86 
Department of Health,NHS Sheffield CCG,30/09/2019,C&M-PMS PCO Locum Adop/Pat/Mat,PRC DELEGATED CO-COMMISSIONING,HACKENTHORPE MEDICAL CENTRE,28878544,"19,145.48 "
Department of Health,NHS Sheffield CCG,30/09/2019,C&M-PMS PCO Other,PRC DELEGATED CO-COMMISSIONING,HACKENTHORPE MEDICAL CENTRE,28878544,435.20 
Department of Health,NHS Sheffield CCG,30/09/2019,C&M-PMS PCO Seniority,PRC DELEGATED CO-COMMISSIONING,HACKENTHORPE MEDICAL CENTRE,28878544,"1,052.61 "
Department of Health,NHS Sheffield CCG,30/09/2019,C&M-PMS Prem Notional Rent,PRC DELEGATED CO-COMMISSIONING,HACKENTHORPE MEDICAL CENTRE,28878544,"5,116.67 "
Department of Health,NHS Sheffield CCG,30/09/2019,C&M-PMS Prem Rates,PRC DELEGATED CO-COMMISSIONING,HACKENTHORPE MEDICAL CENTRE,28878544,"1,363.00 "
Department of Health,NHS Sheffield CCG,30/09/2019,C&M-PMS Prem Water Rates,PRC DELEGATED CO-COMMISSIONING,HACKENTHORPE MEDICAL CENTRE,28878544,57.71 
Department of Health,NHS Sheffield CCG,30/09/2019,C&M-PMS Prof fees Prescribing,PRC DELEGATED CO-COMMISSIONING,HACKENTHORPE MEDICAL CENTRE,28878544,4.73 
Department of Health,NHS Sheffield CCG,30/09/2019,C&M-PMS QOF Aspiration,PRC DELEGATED CO-COMMISSIONING,HACKENTHORPE MEDICAL CENTRE,28878544,"6,528.39 "
Department of Health,NHS Sheffield CCG,30/09/2019,Cont Care-Physical Disab (<65),CHC AD FULL FUND PERS HLTH BUD,HALLAM24 HEALTHCARE LTD,28967436,"31,028.80 "
Department of Health,NHS Sheffield CCG,30/09/2019,C&M-GMS Cost of Drugs -Prescribing,LOCAL ENHANCED SERVICES,HANDSWORTH MEDICAL PRACTICE SHEFFIELD,29113112,"1,008.98 "
Department of Health,NHS Sheffield CCG,30/09/2019,C&M-GMS DES Learn Dsblty Hlth Chk,PRC DELEGATED CO-COMMISSIONING,HANDSWORTH MEDICAL PRACTICE SHEFFIELD,29113112,"1,820.00 "
Department of Health,NHS Sheffield CCG,30/09/2019,C&M-GMS Global Sum,PRC DELEGATED CO-COMMISSIONING,HANDSWORTH MEDICAL PRACTICE SHEFFIELD,29113112,"78,043.04 "
Department of Health,NHS Sheffield CCG,30/09/2019,C&M-GMS PCN DES Participation,PRC DELEGATED CO-COMMISSIONING,HANDSWORTH MEDICAL PRACTICE SHEFFIELD,29113112,"1,567.06 "
Department of Health,NHS Sheffield CCG,30/09/2019,C&M-GMS PCO Seniority,PRC DELEGATED CO-COMMISSIONING,HANDSWORTH MEDICAL PRACTICE SHEFFIELD,29113112,"1,354.52 "
Department of Health,NHS Sheffield CCG,30/09/2019,C&M-GMS Prem Notional Rent,PRC DELEGATED CO-COMMISSIONING,HANDSWORTH MEDICAL PRACTICE SHEFFIELD,29113112,"3,321.66 "
Department of Health,NHS Sheffield CCG,30/09/2019,C&M-GMS Prof Fees Prescribing,PRC DELEGATED CO-COMMISSIONING,HANDSWORTH MEDICAL PRACTICE SHEFFIELD,29113112,257.34 
Department of Health,NHS Sheffield CCG,30/09/2019,C&M-GMS QOF Aspiration,PRC DELEGATED CO-COMMISSIONING,HANDSWORTH MEDICAL PRACTICE SHEFFIELD,29113112,"7,811.29 "
Department of Health,NHS Sheffield CCG,30/09/2019,C&M-GMS Global Sum,PRC DELEGATED CO-COMMISSIONING,HAROLD STREET MEDICAL CENTRE,29127497,"20,028.92 "
Department of Health,NHS Sheffield CCG,30/09/2019,C&M-GMS PCN DES Participation,PRC DELEGATED CO-COMMISSIONING,HAROLD STREET MEDICAL CENTRE,29127497,432.48 
Department of Health,NHS Sheffield CCG,30/09/2019,C&M-GMS PCO Seniority,PRC DELEGATED CO-COMMISSIONING,HAROLD STREET MEDICAL CENTRE,29127497,832.41 
Department of Health,NHS Sheffield CCG,30/09/2019,C&M-GMS Prem Notional Rent,PRC DELEGATED CO-COMMISSIONING,HAROLD STREET MEDICAL CENTRE,29127497,"2,337.50 "
Department of Health,NHS Sheffield CCG,30/09/2019,C&M-GMS Prem Rates,PRC DELEGATED CO-COMMISSIONING,HAROLD STREET MEDICAL CENTRE,29127497,"1,398.00 "
Department of Health,NHS Sheffield CCG,30/09/2019,C&M-GMS QOF Aspiration,PRC DELEGATED CO-COMMISSIONING,HAROLD STREET MEDICAL CENTRE,29127497,"2,228.59 "
Department of Health,NHS Sheffield CCG,30/09/2019,C&M-GMS Cost of Drugs -Prescribing,LOCAL ENHANCED SERVICES,HEALTH CARE SURGERY,29113121,564.76 
Department of Health,NHS Sheffield CCG,30/09/2019,C&M-GMS DES Learn Dsblty Hlth Chk,PRC DELEGATED CO-COMMISSIONING,HEALTH CARE SURGERY,29113121,140.00 
Department of Health,NHS Sheffield CCG,30/09/2019,C&M-GMS Global Sum,PRC DELEGATED CO-COMMISSIONING,HEALTH CARE SURGERY,29113121,"37,938.75 "
Department of Health,NHS Sheffield CCG,30/09/2019,C&M-GMS MPIG Correction Factor,PRC DELEGATED CO-COMMISSIONING,HEALTH CARE SURGERY,29113121,390.01 
Department of Health,NHS Sheffield CCG,30/09/2019,C&M-GMS PCN DES Participation,PRC DELEGATED CO-COMMISSIONING,HEALTH CARE SURGERY,29113121,796.77 
Department of Health,NHS Sheffield CCG,30/09/2019,C&M-GMS PCO Other,PRC DELEGATED CO-COMMISSIONING,HEALTH CARE SURGERY,29113121,342.10 
Department of Health,NHS Sheffield CCG,30/09/2019,C&M-GMS PCO Seniority,PRC DELEGATED CO-COMMISSIONING,HEALTH CARE SURGERY,29113121,405.96 
Department of Health,NHS Sheffield CCG,30/09/2019,C&M-GMS Prem Notional Rent,PRC DELEGATED CO-COMMISSIONING,HEALTH CARE SURGERY,29113121,"3,862.50 "
Department of Health,NHS Sheffield CCG,30/09/2019,C&M-GMS Prem Rates,PRC DELEGATED CO-COMMISSIONING,HEALTH CARE SURGERY,29113121,645.88 
Department of Health,NHS Sheffield CCG,30/09/2019,C&M-GMS Prof Fees Prescribing,PRC DELEGATED CO-COMMISSIONING,HEALTH CARE SURGERY,29113121,113.04 
Department of Health,NHS Sheffield CCG,30/09/2019,C&M-GMS QOF Aspiration,PRC DELEGATED CO-COMMISSIONING,HEALTH CARE SURGERY,29113121,"4,056.36 "
Department of Health,NHS Sheffield CCG,30/09/2019,C&M-GMS Cost of Drugs -Prescribing,LOCAL ENHANCED SERVICES,HEELEY GREEN SURGERY,29127498,669.23 
Department of Health,NHS Sheffield CCG,30/09/2019,C&M-GMS DES Learn Dsblty Hlth Chk,PRC DELEGATED CO-COMMISSIONING,HEELEY GREEN SURGERY,29127498,140.00 
Department of Health,NHS Sheffield CCG,30/09/2019,C&M-GMS Global Sum,PRC DELEGATED CO-COMMISSIONING,HEELEY GREEN SURGERY,29127498,"42,332.96 "
Department of Health,NHS Sheffield CCG,30/09/2019,C&M-GMS MPIG Correction Factor,PRC DELEGATED CO-COMMISSIONING,HEELEY GREEN SURGERY,29127498,188.10 
Department of Health,NHS Sheffield CCG,30/09/2019,C&M-GMS PCN DES Participation,PRC DELEGATED CO-COMMISSIONING,HEELEY GREEN SURGERY,29127498,875.00 
Department of Health,NHS Sheffield CCG,30/09/2019,C&M-GMS PCO Locum Sickness,PRC DELEGATED CO-COMMISSIONING,HEELEY GREEN SURGERY,29127498,"1,999.74 "
Department of Health,NHS Sheffield CCG,30/09/2019,C&M-GMS PCO Seniority,PRC DELEGATED CO-COMMISSIONING,HEELEY GREEN SURGERY,29127498,557.77 
Department of Health,NHS Sheffield CCG,30/09/2019,C&M-GMS Prem Notional Rent,PRC DELEGATED CO-COMMISSIONING,HEELEY GREEN SURGERY,29127498,"3,254.17 "
Department of Health,NHS Sheffield CCG,30/09/2019,C&M-GMS Prem Rates,PRC DELEGATED CO-COMMISSIONING,HEELEY GREEN SURGERY,29127498,305.00 
Department of Health,NHS Sheffield CCG,30/09/2019,C&M-GMS Prof Fees Prescribing,PRC DELEGATED CO-COMMISSIONING,HEELEY GREEN SURGERY,29127498,122.68 
Department of Health,NHS Sheffield CCG,30/09/2019,C&M-GMS QOF Aspiration,PRC DELEGATED CO-COMMISSIONING,HEELEY GREEN SURGERY,29127498,"4,709.02 "
Department of Health,NHS Sheffield CCG,30/09/2019,C&M-GMS Cost of Drugs -Prescribing,LOCAL ENHANCED SERVICES,HOLLIES MEDICAL CENTRE,29113119,726.64 
Department of Health,NHS Sheffield CCG,30/09/2019,C&M-GMS Global Sum,PRC DELEGATED CO-COMMISSIONING,HOLLIES MEDICAL CENTRE,29113119,"60,818.24 "
Department of Health,NHS Sheffield CCG,30/09/2019,C&M-GMS MPIG Correction Factor,PRC DELEGATED CO-COMMISSIONING,HOLLIES MEDICAL CENTRE,29113119,726.36 
Department of Health,NHS Sheffield CCG,30/09/2019,C&M-GMS PCN DES Participation,PRC DELEGATED CO-COMMISSIONING,HOLLIES MEDICAL CENTRE,29113119,"1,215.60 "
Department of Health,NHS Sheffield CCG,30/09/2019,C&M-GMS PCO Seniority,PRC DELEGATED CO-COMMISSIONING,HOLLIES MEDICAL CENTRE,29113119,"1,672.12 "
Department of Health,NHS Sheffield CCG,30/09/2019,C&M-GMS Prem Notional Rent,PRC DELEGATED CO-COMMISSIONING,HOLLIES MEDICAL CENTRE,29113119,"3,229.17 "
Department of Health,NHS Sheffield CCG,30/09/2019,C&M-GMS Prof Fees Prescribing,PRC DELEGATED CO-COMMISSIONING,HOLLIES MEDICAL CENTRE,29113119,103.43 
Department of Health,NHS Sheffield CCG,30/09/2019,C&M-GMS QOF Aspiration,PRC DELEGATED CO-COMMISSIONING,HOLLIES MEDICAL CENTRE,29113119,"6,991.81 "
Department of Health,NHS Sheffield CCG,30/09/2019,Cont Care-Physical Disab (<65),CHC ADULT FULLY FUNDED,HORIZON CARE HOMES LTD,28893823,"47,772.86 "
Department of Health,NHS Sheffield CCG,30/09/2019,Cont Care-Physical Disab (<65),CHC ADULT FULLY FUNDED,HORIZON CARE HOMES LTD,28893829,"45,000.09 "
Department of Health,NHS Sheffield CCG,30/09/2019,Cont Care-Physical Disab (<65),CHC ADULT FULLY FUNDED,HORIZON CARE HOMES LTD,28893856,"45,188.16 "
Department of Health,NHS Sheffield CCG,30/09/2019,Cont Care- Prior Year Payments,CHC ADULT FULLY FUNDED,HORIZON CARE HOMES LTD,28906734,"29,324.24 "
Department of Health,NHS Sheffield CCG,30/09/2019,C&M-PMS Contract Value,PRC DELEGATED CO-COMMISSIONING,JAUNTY SPRINGS HEALTH CENTRE,28878546,"30,921.93 "
Department of Health,NHS Sheffield CCG,30/09/2019,C&M-PMS DES Extended Hours Access,PRC DELEGATED CO-COMMISSIONING,JAUNTY SPRINGS HEALTH CENTRE,28878546,"4,210.64 "
Department of Health,NHS Sheffield CCG,30/09/2019,C&M-PMS Out of Hours Opt Outs,PRC DELEGATED CO-COMMISSIONING,JAUNTY SPRINGS HEALTH CENTRE,28878546,0.17 
Department of Health,NHS Sheffield CCG,30/09/2019,C&M-PMS PCN DES Clinical Director,PRC DELEGATED CO-COMMISSIONING,JAUNTY SPRINGS HEALTH CENTRE,28878546,"1,969.31 "
Department of Health,NHS Sheffield CCG,30/09/2019,C&M-PMS PCN DES PCN support,LOCAL ENHANCED SERVICES,JAUNTY SPRINGS HEALTH CENTRE,28878546,"4,310.25 "
Department of Health,NHS Sheffield CCG,30/09/2019,C&M-PMS PCN DES Participation,PRC DELEGATED CO-COMMISSIONING,JAUNTY SPRINGS HEALTH CENTRE,28878546,583.08 
Department of Health,NHS Sheffield CCG,30/09/2019,C&M-PMS PCO Other,PRC DELEGATED CO-COMMISSIONING,JAUNTY SPRINGS HEALTH CENTRE,28878546,263.60 
Department of Health,NHS Sheffield CCG,30/09/2019,C&M-PMS PCO Seniority,PRC DELEGATED CO-COMMISSIONING,JAUNTY SPRINGS HEALTH CENTRE,28878546,669.32 
Department of Health,NHS Sheffield CCG,30/09/2019,C&M-PMS Prem Notional Rent,PRC DELEGATED CO-COMMISSIONING,JAUNTY SPRINGS HEALTH CENTRE,28878546,"3,208.33 "
Department of Health,NHS Sheffield CCG,30/09/2019,C&M-PMS Prem Rates,PRC DELEGATED CO-COMMISSIONING,JAUNTY SPRINGS HEALTH CENTRE,28878546,710.00 
Department of Health,NHS Sheffield CCG,30/09/2019,C&M-PMS QOF Aspiration,PRC DELEGATED CO-COMMISSIONING,JAUNTY SPRINGS HEALTH CENTRE,28878546,"4,020.11 "
Department of Health,NHS Sheffield CCG,30/09/2019,C&M-GMS IT Comm Servs -GP Practices,PRIMARY CARE IT,KIER BUSINESS SERVICES LTD,29033049,"100,142.40 "
Department of Health,NHS Sheffield CCG,30/09/2019,FM Computer Contracts,BUSINESS INFORMATICS,KIER BUSINESS SERVICES LTD,29033049,"36,193.20 "
Department of Health,NHS Sheffield CCG,30/09/2019,C&M-GMS LES Translation Fees,INTERPRETING SERVICES,LANGUAGELINE SOLUTIONS,28951064,"26,625.60 "
Department of Health,NHS Sheffield CCG,30/09/2019,C&M-GMS LES Translation Fees,INTERPRETING SERVICES,LANGUAGELINE SOLUTIONS,28951070,"41,957.28 "
Department of Health,NHS Sheffield CCG,30/09/2019,Hcare Srv Rec NHS Trust-Contract Baseline,ACUTE COMMISSIONING,LEEDS TEACHING HOSPITALS NHS TRUST,28967353,"57,500.00 "
Department of Health,NHS Sheffield CCG,30/09/2019,Cont Care-Physical Disab (<65),CHC ADULT FULLY FUNDED,LONGLEY HEALTH CARE LTD,28893746,"89,977.79 "
Department of Health,NHS Sheffield CCG,30/09/2019,Cont Care-Physical Disab (<65),CHC ADULT FULLY FUNDED,LOXLEY HEALTH CARE LTD,28893744,"81,371.45 "
Department of Health,NHS Sheffield CCG,30/09/2019,C&M-PMS Contract Value,PRC DELEGATED CO-COMMISSIONING,MANCHESTER ROAD SURGERY SHEFFIELD,28878550,"33,027.37 "
Department of Health,NHS Sheffield CCG,30/09/2019,C&M-PMS PCN DES Participation,PRC DELEGATED CO-COMMISSIONING,MANCHESTER ROAD SURGERY SHEFFIELD,28878550,618.32 
Department of Health,NHS Sheffield CCG,30/09/2019,C&M-PMS PCO Seniority,PRC DELEGATED CO-COMMISSIONING,MANCHESTER ROAD SURGERY SHEFFIELD,28878550,"1,391.74 "
Department of Health,NHS Sheffield CCG,30/09/2019,C&M-PMS Prem Cost Rent,PRC DELEGATED CO-COMMISSIONING,MANCHESTER ROAD SURGERY SHEFFIELD,28878550,"3,472.17 "
Department of Health,NHS Sheffield CCG,30/09/2019,C&M-PMS Prem Notional Rent,PRC DELEGATED CO-COMMISSIONING,MANCHESTER ROAD SURGERY SHEFFIELD,28878550,442.92 
Department of Health,NHS Sheffield CCG,30/09/2019,C&M-PMS Prem Rates,PRC DELEGATED CO-COMMISSIONING,MANCHESTER ROAD SURGERY SHEFFIELD,28878550,970.00 
Department of Health,NHS Sheffield CCG,30/09/2019,C&M-PMS QOF Aspiration,PRC DELEGATED CO-COMMISSIONING,MANCHESTER ROAD SURGERY SHEFFIELD,28878550,"3,985.36 "
Department of Health,NHS Sheffield CCG,30/09/2019,C&M-PMS Contract Value,PRC DELEGATED CO-COMMISSIONING,MANOR & PARK GROUP PRACTICE,28883648,"72,704.78 "
Department of Health,NHS Sheffield CCG,30/09/2019,C&M-PMS Out of Hours Opt Outs,PRC DELEGATED CO-COMMISSIONING,MANOR & PARK GROUP PRACTICE,28883648,79.42 
Department of Health,NHS Sheffield CCG,30/09/2019,C&M-PMS PCN DES Participation,PRC DELEGATED CO-COMMISSIONING,MANOR & PARK GROUP PRACTICE,28883648,"1,445.35 "
Department of Health,NHS Sheffield CCG,30/09/2019,C&M-PMS PCO Seniority,PRC DELEGATED CO-COMMISSIONING,MANOR & PARK GROUP PRACTICE,28883648,"1,064.32 "
Department of Health,NHS Sheffield CCG,30/09/2019,C&M-PMS Prem Notional Rent,PRC DELEGATED CO-COMMISSIONING,MANOR & PARK GROUP PRACTICE,28883648,"9,050.00 "
Department of Health,NHS Sheffield CCG,30/09/2019,C&M-PMS Prem Rates,PRC DELEGATED CO-COMMISSIONING,MANOR & PARK GROUP PRACTICE,28883648,"1,747.00 "
Department of Health,NHS Sheffield CCG,30/09/2019,C&M-PMS QOF Aspiration,PRC DELEGATED CO-COMMISSIONING,MANOR & PARK GROUP PRACTICE,28883648,"7,420.75 "
Department of Health,NHS Sheffield CCG,30/09/2019,C&M-GMS Cost of Drugs -Prescribing,LOCAL ENHANCED SERVICES,MATHEWS PRACTICE,29113129,499.90 
Department of Health,NHS Sheffield CCG,30/09/2019,C&M-GMS Global Sum,PRC DELEGATED CO-COMMISSIONING,MATHEWS PRACTICE,29113129,"59,605.03 "
Department of Health,NHS Sheffield CCG,30/09/2019,C&M-GMS MPIG Correction Factor,PRC DELEGATED CO-COMMISSIONING,MATHEWS PRACTICE,29113129,299.48 
Department of Health,NHS Sheffield CCG,30/09/2019,C&M-GMS PCN DES Participation,PRC DELEGATED CO-COMMISSIONING,MATHEWS PRACTICE,29113129,"1,281.64 "
Department of Health,NHS Sheffield CCG,30/09/2019,C&M-GMS PCO Seniority,PRC DELEGATED CO-COMMISSIONING,MATHEWS PRACTICE,29113129,689.33 
Department of Health,NHS Sheffield CCG,30/09/2019,C&M-GMS Prem Notional Rent,PRC DELEGATED CO-COMMISSIONING,MATHEWS PRACTICE,29113129,"8,660.42 "
Department of Health,NHS Sheffield CCG,30/09/2019,C&M-GMS Prem Rates,PRC DELEGATED CO-COMMISSIONING,MATHEWS PRACTICE,29113129,"2,148.00 "
Department of Health,NHS Sheffield CCG,30/09/2019,C&M-GMS Prof Fees Prescribing,PRC DELEGATED CO-COMMISSIONING,MATHEWS PRACTICE,29113129,187.59 
Department of Health,NHS Sheffield CCG,30/09/2019,C&M-GMS QOF Aspiration,PRC DELEGATED CO-COMMISSIONING,MATHEWS PRACTICE,29113129,"7,156.84 "
Department of Health,NHS Sheffield CCG,30/09/2019,C&M-PMS Contract Value,PRC DELEGATED CO-COMMISSIONING,MEADOWHEAD GROUP PRACTICE,28878548,"74,210.97 "
Department of Health,NHS Sheffield CCG,30/09/2019,C&M-PMS Out of Hours Opt Outs,PRC DELEGATED CO-COMMISSIONING,MEADOWHEAD GROUP PRACTICE,28878548,20.35 
Department of Health,NHS Sheffield CCG,30/09/2019,C&M-PMS PCN DES Participation,PRC DELEGATED CO-COMMISSIONING,MEADOWHEAD GROUP PRACTICE,28878548,"1,403.48 "
Department of Health,NHS Sheffield CCG,30/09/2019,C&M-PMS PCO Seniority,PRC DELEGATED CO-COMMISSIONING,MEADOWHEAD GROUP PRACTICE,28878548,"2,957.69 "
Department of Health,NHS Sheffield CCG,30/09/2019,C&M-PMS Prem Cost Rent,PRC DELEGATED CO-COMMISSIONING,MEADOWHEAD GROUP PRACTICE,28878548,"3,647.42 "
Department of Health,NHS Sheffield CCG,30/09/2019,C&M-PMS Prem Notional Rent,PRC DELEGATED CO-COMMISSIONING,MEADOWHEAD GROUP PRACTICE,28878548,"3,358.33 "
Department of Health,NHS Sheffield CCG,30/09/2019,C&M-PMS Prem Rates,PRC DELEGATED CO-COMMISSIONING,MEADOWHEAD GROUP PRACTICE,28878548,"1,870.00 "
Department of Health,NHS Sheffield CCG,30/09/2019,C&M-PMS Prem Water Rates,PRC DELEGATED CO-COMMISSIONING,MEADOWHEAD GROUP PRACTICE,28878548,211.71 
Department of Health,NHS Sheffield CCG,30/09/2019,C&M-PMS QOF Aspiration,PRC DELEGATED CO-COMMISSIONING,MEADOWHEAD GROUP PRACTICE,28878548,"9,076.52 "
Department of Health,NHS Sheffield CCG,30/09/2019,C&M-GMS Cost of Drugs -Prescribing,LOCAL ENHANCED SERVICES,MEDICAL CENTRE CRYSTAL PEAKS,29113125,"2,447.13 "
Department of Health,NHS Sheffield CCG,30/09/2019,C&M-GMS Global Sum,PRC DELEGATED CO-COMMISSIONING,MEDICAL CENTRE CRYSTAL PEAKS,29113125,"46,652.50 "
Department of Health,NHS Sheffield CCG,30/09/2019,C&M-GMS MPIG Correction Factor,PRC DELEGATED CO-COMMISSIONING,MEDICAL CENTRE CRYSTAL PEAKS,29113125,565.67 
Department of Health,NHS Sheffield CCG,30/09/2019,C&M-GMS PCN DES Participation,PRC DELEGATED CO-COMMISSIONING,MEDICAL CENTRE CRYSTAL PEAKS,29113125,950.00 
Department of Health,NHS Sheffield CCG,30/09/2019,C&M-GMS PCO Locum Adop/Pat/Mat,PRC DELEGATED CO-COMMISSIONING,MEDICAL CENTRE CRYSTAL PEAKS,29113125,"7,981.44 "
Department of Health,NHS Sheffield CCG,30/09/2019,C&M-GMS PCO Other,PRC DELEGATED CO-COMMISSIONING,MEDICAL CENTRE CRYSTAL PEAKS,29113125,426.60 
Department of Health,NHS Sheffield CCG,30/09/2019,C&M-GMS PCO Seniority,PRC DELEGATED CO-COMMISSIONING,MEDICAL CENTRE CRYSTAL PEAKS,29113125,"1,881.83 "
Department of Health,NHS Sheffield CCG,30/09/2019,C&M-GMS Prem Notional Rent,PRC DELEGATED CO-COMMISSIONING,MEDICAL CENTRE CRYSTAL PEAKS,29113125,270.00 
Department of Health,NHS Sheffield CCG,30/09/2019,C&M-GMS Prem Rates,PRC DELEGATED CO-COMMISSIONING,MEDICAL CENTRE CRYSTAL PEAKS,29113125,"1,056.00 "
Department of Health,NHS Sheffield CCG,30/09/2019,C&M-GMS Prof Fees Prescribing,PRC DELEGATED CO-COMMISSIONING,MEDICAL CENTRE CRYSTAL PEAKS,29113125,384.81 
Department of Health,NHS Sheffield CCG,30/09/2019,C&M-GMS QOF Aspiration,PRC DELEGATED CO-COMMISSIONING,MEDICAL CENTRE CRYSTAL PEAKS,29113125,"6,211.79 "
Department of Health,NHS Sheffield CCG,30/09/2019,C&M-GMS Cost of Drugs -Prescribing,LOCAL ENHANCED SERVICES,MILL ROAD SURGERY SHEFFIELD,29113132,"1,515.32 "
Department of Health,NHS Sheffield CCG,30/09/2019,C&M-GMS Global Sum,PRC DELEGATED CO-COMMISSIONING,MILL ROAD SURGERY SHEFFIELD,29113132,"40,804.73 "
Department of Health,NHS Sheffield CCG,30/09/2019,C&M-GMS MPIG Correction Factor,PRC DELEGATED CO-COMMISSIONING,MILL ROAD SURGERY SHEFFIELD,29113132,61.02 
Department of Health,NHS Sheffield CCG,30/09/2019,C&M-GMS PCN DES Participation,PRC DELEGATED CO-COMMISSIONING,MILL ROAD SURGERY SHEFFIELD,29113132,842.44 
Department of Health,NHS Sheffield CCG,30/09/2019,C&M-GMS PCO Other,PRC DELEGATED CO-COMMISSIONING,MILL ROAD SURGERY SHEFFIELD,29113132,352.70 
Department of Health,NHS Sheffield CCG,30/09/2019,C&M-GMS PCO Seniority,PRC DELEGATED CO-COMMISSIONING,MILL ROAD SURGERY SHEFFIELD,29113132,353.33 
Department of Health,NHS Sheffield CCG,30/09/2019,C&M-GMS Prem Notional Rent,PRC DELEGATED CO-COMMISSIONING,MILL ROAD SURGERY SHEFFIELD,29113132,"4,593.33 "
Department of Health,NHS Sheffield CCG,30/09/2019,C&M-GMS Prem Rates,PRC DELEGATED CO-COMMISSIONING,MILL ROAD SURGERY SHEFFIELD,29113132,"1,056.00 "
Department of Health,NHS Sheffield CCG,30/09/2019,C&M-GMS Prof Fees Prescribing,PRC DELEGATED CO-COMMISSIONING,MILL ROAD SURGERY SHEFFIELD,29113132,134.69 
Department of Health,NHS Sheffield CCG,30/09/2019,C&M-GMS QOF Aspiration,PRC DELEGATED CO-COMMISSIONING,MILL ROAD SURGERY SHEFFIELD,29113132,"5,088.50 "
Department of Health,NHS Sheffield CCG,30/09/2019,Clinical&Medical-Independent Sector,Mental Health Services - S117 Mental Health,MOORVILLE RESIDENTIAL,28951185,"14,576.40 "
Department of Health,NHS Sheffield CCG,30/09/2019,Cont Care-Learning Disab(<65),CHC ADULT FULLY FUNDED,MOORVILLE RESIDENTIAL,28951185,"8,853.90 "
Department of Health,NHS Sheffield CCG,30/09/2019,Cont Care-Learning Disab(<65),CHC ADULT JOINT FUNDED,MOORVILLE RESIDENTIAL,28951185,"3,894.90 "
Department of Health,NHS Sheffield CCG,30/09/2019,Cont Care-Mental Health (<65),CHC ADULT JOINT FUNDED,MOORVILLE RESIDENTIAL,28951185,475.80 
Department of Health,NHS Sheffield CCG,30/09/2019,C&M-PMS Contract Value,PRC DELEGATED CO-COMMISSIONING,MOSBOROUGH HEALTH CENTRE,28878552,"49,452.21 "
Department of Health,NHS Sheffield CCG,30/09/2019,C&M-PMS PCN DES Participation,PRC DELEGATED CO-COMMISSIONING,MOSBOROUGH HEALTH CENTRE,28878552,927.38 
Department of Health,NHS Sheffield CCG,30/09/2019,C&M-PMS PCO Other,PRC DELEGATED CO-COMMISSIONING,MOSBOROUGH HEALTH CENTRE,28878552,432.20 
Department of Health,NHS Sheffield CCG,30/09/2019,C&M-PMS PCO Seniority,PRC DELEGATED CO-COMMISSIONING,MOSBOROUGH HEALTH CENTRE,28878552,"1,392.15 "
Department of Health,NHS Sheffield CCG,30/09/2019,C&M-PMS Prem Notional Rent,PRC DELEGATED CO-COMMISSIONING,MOSBOROUGH HEALTH CENTRE,28878552,"4,091.67 "
Department of Health,NHS Sheffield CCG,30/09/2019,C&M-PMS Prem Rates,PRC DELEGATED CO-COMMISSIONING,MOSBOROUGH HEALTH CENTRE,28878552,"1,105.00 "
Department of Health,NHS Sheffield CCG,30/09/2019,C&M-PMS QOF Aspiration,PRC DELEGATED CO-COMMISSIONING,MOSBOROUGH HEALTH CENTRE,28878552,"5,736.56 "
Department of Health,NHS Sheffield CCG,30/09/2019,C&M-PMS Contract Value,PRC DELEGATED CO-COMMISSIONING,NETHERGREEN SURGERY,28878553,(49.67)
Department of Health,NHS Sheffield CCG,30/09/2019,C&M-PMS GP Statutory Levy,PRC DELEGATED CO-COMMISSIONING,NETHERGREEN SURGERY,28878553,(326.66)
Department of Health,NHS Sheffield CCG,30/09/2019,C&M-PMS Out of Hours Opt Outs,PRC DELEGATED CO-COMMISSIONING,NETHERGREEN SURGERY,28878553,"(2,975.29)"
Department of Health,NHS Sheffield CCG,30/09/2019,C&M-PMS Contract Value,PRC DELEGATED CO-COMMISSIONING,NETHERGREEN SURGERY,28878554,"63,791.23 "
Department of Health,NHS Sheffield CCG,30/09/2019,C&M-PMS Out of Hours Opt Outs,PRC DELEGATED CO-COMMISSIONING,NETHERGREEN SURGERY,28878554,2.32 
Department of Health,NHS Sheffield CCG,30/09/2019,C&M-PMS PCN DES Participation,PRC DELEGATED CO-COMMISSIONING,NETHERGREEN SURGERY,28878554,"1,208.31 "
Department of Health,NHS Sheffield CCG,30/09/2019,C&M-PMS PCO Seniority,PRC DELEGATED CO-COMMISSIONING,NETHERGREEN SURGERY,28878554,"2,812.37 "
Department of Health,NHS Sheffield CCG,30/09/2019,C&M-PMS Prem Cost Rent,PRC DELEGATED CO-COMMISSIONING,NETHERGREEN SURGERY,28878554,"5,057.33 "
Department of Health,NHS Sheffield CCG,30/09/2019,C&M-PMS Prem Rates,PRC DELEGATED CO-COMMISSIONING,NETHERGREEN SURGERY,28878554,"1,264.00 "
Department of Health,NHS Sheffield CCG,30/09/2019,C&M-PMS QOF Aspiration,PRC DELEGATED CO-COMMISSIONING,NETHERGREEN SURGERY,28878554,"6,406.79 "
Department of Health,NHS Sheffield CCG,30/09/2019,C&M-GMS Cost of Drugs -Prescribing,LOCAL ENHANCED SERVICES,NORFOLK PARK HEALTH CENTRE,29113137,"1,583.66 "
Department of Health,NHS Sheffield CCG,30/09/2019,C&M-GMS Global Sum,PRC DELEGATED CO-COMMISSIONING,NORFOLK PARK HEALTH CENTRE,29113137,"39,049.58 "
Department of Health,NHS Sheffield CCG,30/09/2019,C&M-GMS MPIG Correction Factor,PRC DELEGATED CO-COMMISSIONING,NORFOLK PARK HEALTH CENTRE,29113137,462.30 
Department of Health,NHS Sheffield CCG,30/09/2019,C&M-GMS PCN DES Participation,PRC DELEGATED CO-COMMISSIONING,NORFOLK PARK HEALTH CENTRE,29113137,763.41 
Department of Health,NHS Sheffield CCG,30/09/2019,C&M-GMS PCO Seniority,PRC DELEGATED CO-COMMISSIONING,NORFOLK PARK HEALTH CENTRE,29113137,"2,002.25 "
Department of Health,NHS Sheffield CCG,30/09/2019,C&M-GMS Prem Healthcentre Rent,PRC DELEGATED CO-COMMISSIONING,NORFOLK PARK HEALTH CENTRE,29113137,"24,820.01 "
Department of Health,NHS Sheffield CCG,30/09/2019,C&M-GMS Prof Fees Prescribing,PRC DELEGATED CO-COMMISSIONING,NORFOLK PARK HEALTH CENTRE,29113137,209.24 
Department of Health,NHS Sheffield CCG,30/09/2019,C&M-GMS QOF Aspiration,PRC DELEGATED CO-COMMISSIONING,NORFOLK PARK HEALTH CENTRE,29113137,"3,941.29 "
Department of Health,NHS Sheffield CCG,30/09/2019,C&M-GMS Cost of Drugs -Prescribing,LOCAL ENHANCED SERVICES,NORWOOD MEDICAL CENTRE SHEFFIELD,29113140,501.28 
Department of Health,NHS Sheffield CCG,30/09/2019,C&M-GMS Global Sum,PRC DELEGATED CO-COMMISSIONING,NORWOOD MEDICAL CENTRE SHEFFIELD,29113140,"65,351.94 "
Department of Health,NHS Sheffield CCG,30/09/2019,C&M-GMS PCN DES Participation,PRC DELEGATED CO-COMMISSIONING,NORWOOD MEDICAL CENTRE SHEFFIELD,29113140,"1,337.61 "
Department of Health,NHS Sheffield CCG,30/09/2019,C&M-GMS PCO Other,PRC DELEGATED CO-COMMISSIONING,NORWOOD MEDICAL CENTRE SHEFFIELD,29113140,510.00 
Department of Health,NHS Sheffield CCG,30/09/2019,C&M-GMS PCO Seniority,PRC DELEGATED CO-COMMISSIONING,NORWOOD MEDICAL CENTRE SHEFFIELD,29113140,"2,124.58 "
Department of Health,NHS Sheffield CCG,30/09/2019,C&M-GMS Prem Notional Rent,PRC DELEGATED CO-COMMISSIONING,NORWOOD MEDICAL CENTRE SHEFFIELD,29113140,"5,187.50 "
Department of Health,NHS Sheffield CCG,30/09/2019,C&M-GMS Prem Rates,PRC DELEGATED CO-COMMISSIONING,NORWOOD MEDICAL CENTRE SHEFFIELD,29113140,"1,279.00 "
Department of Health,NHS Sheffield CCG,30/09/2019,C&M-GMS Prof Fees Prescribing,PRC DELEGATED CO-COMMISSIONING,NORWOOD MEDICAL CENTRE SHEFFIELD,29113140,137.10 
Department of Health,NHS Sheffield CCG,30/09/2019,C&M-GMS QOF Aspiration,PRC DELEGATED CO-COMMISSIONING,NORWOOD MEDICAL CENTRE SHEFFIELD,29113140,"8,171.17 "
Department of Health,NHS Sheffield CCG,30/09/2019,Clinical&Medical-Independent Sector,ACUTE COMMISSIONING,ONEHEALTH GROUP,28906830,"71,286.25 "
Department of Health,NHS Sheffield CCG,30/09/2019,Clinical&Medical-Independent Sector,ACUTE COMMISSIONING,ONEHEALTH GROUP,29138258,"(26,133.03)"
Department of Health,NHS Sheffield CCG,30/09/2019,C&M-GMS Cost of Drugs -Dispensing,LOCAL ENHANCED SERVICES,OUGHTIBRIDGE SURGERY,29113143,"(15,115.08)"
Department of Health,NHS Sheffield CCG,30/09/2019,C&M-GMS GP Statutory Levy,PRC DELEGATED CO-COMMISSIONING,OUGHTIBRIDGE SURGERY,29113143,(203.07)
Department of Health,NHS Sheffield CCG,30/09/2019,C&M-GMS PrscChrgsCll&RmttdbyGPCntra,PRC DELEGATED CO-COMMISSIONING,OUGHTIBRIDGE SURGERY,29113143,(720.00)
Department of Health,NHS Sheffield CCG,30/09/2019,C&M-GMS Cost of Drugs -Dispensing,LOCAL ENHANCED SERVICES,OUGHTIBRIDGE SURGERY,29113144,"26,504.39 "
Department of Health,NHS Sheffield CCG,30/09/2019,C&M-GMS Global Sum,PRC DELEGATED CO-COMMISSIONING,OUGHTIBRIDGE SURGERY,29113144,"43,122.00 "
Department of Health,NHS Sheffield CCG,30/09/2019,C&M-GMS PCN DES Participation,PRC DELEGATED CO-COMMISSIONING,OUGHTIBRIDGE SURGERY,29113144,889.02 
Department of Health,NHS Sheffield CCG,30/09/2019,C&M-GMS PCO Seniority,PRC DELEGATED CO-COMMISSIONING,OUGHTIBRIDGE SURGERY,29113144,"1,048.16 "
Department of Health,NHS Sheffield CCG,30/09/2019,C&M-GMS Prem Notional Rent,PRC DELEGATED CO-COMMISSIONING,OUGHTIBRIDGE SURGERY,29113144,"3,957.33 "
Department of Health,NHS Sheffield CCG,30/09/2019,C&M-GMS Prem Rates,PRC DELEGATED CO-COMMISSIONING,OUGHTIBRIDGE SURGERY,29113144,895.00 
Department of Health,NHS Sheffield CCG,30/09/2019,C&M-GMS Prof Fees Dispensing,PRC DELEGATED CO-COMMISSIONING,OUGHTIBRIDGE SURGERY,29113144,"4,651.53 "
Department of Health,NHS Sheffield CCG,30/09/2019,C&M-GMS PrscrptnChrgsColl&RmttdbyGP,LOCAL ENHANCED SERVICES,OUGHTIBRIDGE SURGERY,29113144,720.00 
Department of Health,NHS Sheffield CCG,30/09/2019,C&M-GMS QOF Aspiration,PRC DELEGATED CO-COMMISSIONING,OUGHTIBRIDGE SURGERY,29113144,"4,261.60 "
Department of Health,NHS Sheffield CCG,30/09/2019,C&M-PMS Contract Value,PRC DELEGATED CO-COMMISSIONING,OWLTHORPE MEDICAL CENTRE,28878556,"33,242.63 "
Department of Health,NHS Sheffield CCG,30/09/2019,C&M-PMS Out of Hours Opt Outs,PRC DELEGATED CO-COMMISSIONING,OWLTHORPE MEDICAL CENTRE,28878556,11.91 
Department of Health,NHS Sheffield CCG,30/09/2019,C&M-PMS PCN DES Participation,PRC DELEGATED CO-COMMISSIONING,OWLTHORPE MEDICAL CENTRE,28878556,639.06 
Department of Health,NHS Sheffield CCG,30/09/2019,C&M-PMS PCO Locum Adop/Pat/Mat,PRC DELEGATED CO-COMMISSIONING,OWLTHORPE MEDICAL CENTRE,28878556,"8,527.06 "
Department of Health,NHS Sheffield CCG,30/09/2019,C&M-PMS Prem Actual Rent,PRC DELEGATED CO-COMMISSIONING,OWLTHORPE MEDICAL CENTRE,28878556,"7,539.58 "
Department of Health,NHS Sheffield CCG,30/09/2019,C&M-PMS Prem Rates,PRC DELEGATED CO-COMMISSIONING,OWLTHORPE MEDICAL CENTRE,28878556,"1,316.00 "
Department of Health,NHS Sheffield CCG,30/09/2019,C&M-PMS Prem Water Rates,PRC DELEGATED CO-COMMISSIONING,OWLTHORPE MEDICAL CENTRE,28878556,163.25 
Department of Health,NHS Sheffield CCG,30/09/2019,C&M-PMS QOF Aspiration,PRC DELEGATED CO-COMMISSIONING,OWLTHORPE MEDICAL CENTRE,28878556,"3,873.48 "
Department of Health,NHS Sheffield CCG,30/09/2019,C&M-PMS Contract Value,PRC DELEGATED CO-COMMISSIONING,PAGE HALL MEDICAL CENTRE,28878558,"57,002.30 "
Department of Health,NHS Sheffield CCG,30/09/2019,C&M-PMS Out of Hours Opt Outs,PRC DELEGATED CO-COMMISSIONING,PAGE HALL MEDICAL CENTRE,28878558,20.84 
Department of Health,NHS Sheffield CCG,30/09/2019,C&M-PMS PCN DES Participation,PRC DELEGATED CO-COMMISSIONING,PAGE HALL MEDICAL CENTRE,28878558,"1,083.01 "
Department of Health,NHS Sheffield CCG,30/09/2019,C&M-PMS PCO Other,PRC DELEGATED CO-COMMISSIONING,PAGE HALL MEDICAL CENTRE,28878558,"2,970.60 "
Department of Health,NHS Sheffield CCG,30/09/2019,C&M-PMS PCO Seniority,PRC DELEGATED CO-COMMISSIONING,PAGE HALL MEDICAL CENTRE,28878558,"1,359.60 "
Department of Health,NHS Sheffield CCG,30/09/2019,C&M-PMS Prem Notional Rent,PRC DELEGATED CO-COMMISSIONING,PAGE HALL MEDICAL CENTRE,28878558,"4,833.33 "
Department of Health,NHS Sheffield CCG,30/09/2019,C&M-PMS Prem Rates,PRC DELEGATED CO-COMMISSIONING,PAGE HALL MEDICAL CENTRE,28878558,"1,077.00 "
Department of Health,NHS Sheffield CCG,30/09/2019,C&M-PMS Prem Water Rates,PRC DELEGATED CO-COMMISSIONING,PAGE HALL MEDICAL CENTRE,28878558,153.99 
Department of Health,NHS Sheffield CCG,30/09/2019,C&M-PMS QOF Aspiration,PRC DELEGATED CO-COMMISSIONING,PAGE HALL MEDICAL CENTRE,28878558,"4,558.05 "
Department of Health,NHS Sheffield CCG,30/09/2019,C&M-PMS Contract Value,PRC DELEGATED CO-COMMISSIONING,PORTER BROOK MEDICAL CENTRE,28878559,"(6,328.21)"
Department of Health,NHS Sheffield CCG,30/09/2019,C&M-PMS GP Statutory Levy,PRC DELEGATED CO-COMMISSIONING,PORTER BROOK MEDICAL CENTRE,28878559,(989.17)
Department of Health,NHS Sheffield CCG,30/09/2019,C&M-PMS Out of Hours Opt Outs,PRC DELEGATED CO-COMMISSIONING,PORTER BROOK MEDICAL CENTRE,28878559,"(7,778.42)"
Department of Health,NHS Sheffield CCG,30/09/2019,C&M-PMS Contract Value,PRC DELEGATED CO-COMMISSIONING,PORTER BROOK MEDICAL CENTRE,28878560,"166,801.76 "
Department of Health,NHS Sheffield CCG,30/09/2019,C&M-PMS Out of Hours Opt Outs,PRC DELEGATED CO-COMMISSIONING,PORTER BROOK MEDICAL CENTRE,28878560,295.37 
Department of Health,NHS Sheffield CCG,30/09/2019,C&M-PMS PCN DES Participation,PRC DELEGATED CO-COMMISSIONING,PORTER BROOK MEDICAL CENTRE,28878560,"3,163.47 "
Department of Health,NHS Sheffield CCG,30/09/2019,C&M-PMS PCO Other,PRC DELEGATED CO-COMMISSIONING,PORTER BROOK MEDICAL CENTRE,28878560,"1,730.30 "
Department of Health,NHS Sheffield CCG,30/09/2019,C&M-PMS PCO Seniority,PRC DELEGATED CO-COMMISSIONING,PORTER BROOK MEDICAL CENTRE,28878560,"5,509.01 "
Department of Health,NHS Sheffield CCG,30/09/2019,C&M-PMS Prem Actual Rent,PRC DELEGATED CO-COMMISSIONING,PORTER BROOK MEDICAL CENTRE,28878560,"1,333.33 "
Department of Health,NHS Sheffield CCG,30/09/2019,C&M-PMS Prem Notional Rent,PRC DELEGATED CO-COMMISSIONING,PORTER BROOK MEDICAL CENTRE,28878560,"9,666.67 "
Department of Health,NHS Sheffield CCG,30/09/2019,C&M-PMS Prem Rates,PRC DELEGATED CO-COMMISSIONING,PORTER BROOK MEDICAL CENTRE,28878560,"2,271.00 "
Department of Health,NHS Sheffield CCG,30/09/2019,C&M-PMS QOF Aspiration,PRC DELEGATED CO-COMMISSIONING,PORTER BROOK MEDICAL CENTRE,28878560,"8,838.31 "
Department of Health,NHS Sheffield CCG,30/09/2019,Clinical&Medical-Commercial Sector,PATIENT TRANSPORT,PREMIER CARE DIRECT LTD,29179233,"112,480.55 "
Department of Health,NHS Sheffield CCG,30/09/2019,C&M-GMS LES Basket of Procedures,LOCAL ENHANCED SERVICES,PRIMARY CARE SHEFFIELD LTD,29033945,"52,308.33 "
Department of Health,NHS Sheffield CCG,30/09/2019,C&M-APMS DES Extended Hours Access,GP FORWARD VIEW,PRIMARY CARE SHEFFIELD LTD,29033962,"295,941.67 "
Department of Health,NHS Sheffield CCG,30/09/2019,Cont Care-Physical Disab (<65),CHC ADULT FULLY FUNDED,PRIORY GROUP LTD,28853472,"27,199.99 "
Department of Health,NHS Sheffield CCG,30/09/2019,Cont Care-Funded Nursing Care Allow,FUNDED NURSING CARE,PRIORY GROUP LTD,28906553,"25,779.97 "
Department of Health,NHS Sheffield CCG,30/09/2019,C&M-PMS Contract Value,PRC DELEGATED CO-COMMISSIONING,RICHMOND MEDICAL CENTRE,28878562,"67,073.18 "
Department of Health,NHS Sheffield CCG,30/09/2019,C&M-PMS PCN DES Participation,PRC DELEGATED CO-COMMISSIONING,RICHMOND MEDICAL CENTRE,28878562,"1,271.70 "
Department of Health,NHS Sheffield CCG,30/09/2019,C&M-PMS PCO Other,PRC DELEGATED CO-COMMISSIONING,RICHMOND MEDICAL CENTRE,28878562,561.50 
Department of Health,NHS Sheffield CCG,30/09/2019,C&M-PMS PCO Seniority,PRC DELEGATED CO-COMMISSIONING,RICHMOND MEDICAL CENTRE,28878562,"1,610.95 "
Department of Health,NHS Sheffield CCG,30/09/2019,C&M-PMS Prem Notional Rent,PRC DELEGATED CO-COMMISSIONING,RICHMOND MEDICAL CENTRE,28878562,"4,731.00 "
Department of Health,NHS Sheffield CCG,30/09/2019,C&M-PMS Prem Rates,PRC DELEGATED CO-COMMISSIONING,RICHMOND MEDICAL CENTRE,28878562,"1,259.00 "
Department of Health,NHS Sheffield CCG,30/09/2019,C&M-PMS QOF Aspiration,PRC DELEGATED CO-COMMISSIONING,RICHMOND MEDICAL CENTRE,28878562,"8,208.20 "
Department of Health,NHS Sheffield CCG,30/09/2019,Cont Care-Physical Disab (<65),CHC ADULT FULLY FUNDED,ROSEBERRY CARE CENTRES,28906573,"29,026.41 "
Department of Health,NHS Sheffield CCG,30/09/2019,Cont Care-Physical Disab (<65),CHC ADULT FULLY FUNDED,ROSEBERRY CARE CENTRES,28906579,"32,925.06 "
Department of Health,NHS Sheffield CCG,30/09/2019,Cont Care-Funded Nursing Care Allow,FUNDED NURSING CARE,ROSEBERRY CARE CENTRES,29033098,"31,611.09 "
Department of Health,NHS Sheffield CCG,30/09/2019,Hcare Srv Rec Fdtn Trust-Contract Baseline,MENTAL HEALTH CONTRACTS,ROTHERHAM DONCASTER AND SOUTH HUMBER NHS FOUNDATION TRUST,28791148,"25,487.95 "
Department of Health,NHS Sheffield CCG,30/09/2019,Hcare Srv Rec Fdtn Trust-Contract Baseline,ACUTE COMMISSIONING,ROTHERHAM NHS FOUNDATION TRUST,28967356,"466,729.00 "
Department of Health,NHS Sheffield CCG,30/09/2019,C&M-PMS Contract Value,PRC DELEGATED CO-COMMISSIONING,RUSTLINGS ROAD MEDICAL CENTRE,28878566,"28,037.73 "
Department of Health,NHS Sheffield CCG,30/09/2019,C&M-PMS PCN DES Participation,PRC DELEGATED CO-COMMISSIONING,RUSTLINGS ROAD MEDICAL CENTRE,28878566,527.62 
Department of Health,NHS Sheffield CCG,30/09/2019,C&M-PMS PCO Other,PRC DELEGATED CO-COMMISSIONING,RUSTLINGS ROAD MEDICAL CENTRE,28878566,313.80 
Department of Health,NHS Sheffield CCG,30/09/2019,C&M-PMS PCO Seniority,PRC DELEGATED CO-COMMISSIONING,RUSTLINGS ROAD MEDICAL CENTRE,28878566,"1,288.12 "
Department of Health,NHS Sheffield CCG,30/09/2019,C&M-PMS Prem Notional Rent,PRC DELEGATED CO-COMMISSIONING,RUSTLINGS ROAD MEDICAL CENTRE,28878566,"1,312.50 "
Department of Health,NHS Sheffield CCG,30/09/2019,C&M-PMS QOF Aspiration,PRC DELEGATED CO-COMMISSIONING,RUSTLINGS ROAD MEDICAL CENTRE,28878566,"2,653.37 "
Department of Health,NHS Sheffield CCG,30/09/2019,Cont Care-Physical Disab (<65),CHC ADULT FULLY FUNDED,SEVEN HILLS NURSING HOME,28906584,"27,810.57 "
Department of Health,NHS Sheffield CCG,30/09/2019,C&M-GMS Cost of Drugs -Prescribing,LOCAL ENHANCED SERVICES,SHARROW LANE MEDICAL CENTRE,29113147,752.04 
Department of Health,NHS Sheffield CCG,30/09/2019,C&M-GMS Global Sum,PRC DELEGATED CO-COMMISSIONING,SHARROW LANE MEDICAL CENTRE,29113147,"23,533.97 "
Department of Health,NHS Sheffield CCG,30/09/2019,C&M-GMS MPIG Correction Factor,PRC DELEGATED CO-COMMISSIONING,SHARROW LANE MEDICAL CENTRE,29113147,980.16 
Department of Health,NHS Sheffield CCG,30/09/2019,C&M-GMS PCN DES Participation,PRC DELEGATED CO-COMMISSIONING,SHARROW LANE MEDICAL CENTRE,29113147,481.39 
Department of Health,NHS Sheffield CCG,30/09/2019,C&M-GMS PCO Other,PRC DELEGATED CO-COMMISSIONING,SHARROW LANE MEDICAL CENTRE,29113147,274.00 
Department of Health,NHS Sheffield CCG,30/09/2019,C&M-GMS PCO Seniority,PRC DELEGATED CO-COMMISSIONING,SHARROW LANE MEDICAL CENTRE,29113147,305.02 
Department of Health,NHS Sheffield CCG,30/09/2019,C&M-GMS Prem Notional Rent,PRC DELEGATED CO-COMMISSIONING,SHARROW LANE MEDICAL CENTRE,29113147,"2,741.67 "
Department of Health,NHS Sheffield CCG,30/09/2019,C&M-GMS Prem Rates,PRC DELEGATED CO-COMMISSIONING,SHARROW LANE MEDICAL CENTRE,29113147,581.00 
Department of Health,NHS Sheffield CCG,30/09/2019,C&M-GMS Prof Fees Prescribing,PRC DELEGATED CO-COMMISSIONING,SHARROW LANE MEDICAL CENTRE,29113147,117.85 
Department of Health,NHS Sheffield CCG,30/09/2019,C&M-GMS QOF Aspiration,PRC DELEGATED CO-COMMISSIONING,SHARROW LANE MEDICAL CENTRE,29113147,"2,666.85 "
Department of Health,NHS Sheffield CCG,30/09/2019,Hcare Srv Rec Fdtn Trust-Contract Baseline,ACUTE CHILDRENS SERVICES,SHEFFIELD CHILDRENS NHS FOUNDATION TRUST,29033063,"3,387,974.00 "
Department of Health,NHS Sheffield CCG,30/09/2019,Services From Local Authorities,MENTAL HEALTH SERVICES - COLLABORATIVE COMMISSIONING,SHEFFIELD CITY COUNCIL,28893540,"31,300.68 "
Department of Health,NHS Sheffield CCG,30/09/2019,Clinical&Medical-Othe Public Sector,COMMUNITY SERVICES,SHEFFIELD CITY COUNCIL,28893627,"150,417.00 "
Department of Health,NHS Sheffield CCG,30/09/2019,Clinical&Medical-Othe Public Sector,MENTAL HEALTH SERVICES - COLLABORATIVE COMMISSIONING,SHEFFIELD CITY COUNCIL,28893627,"83,667.42 "
Department of Health,NHS Sheffield CCG,30/09/2019,Clinical&Medical-Othe Public Sector,REABLEMENT,SHEFFIELD CITY COUNCIL,28893627,"21,831.00 "
Department of Health,NHS Sheffield CCG,30/09/2019,Clinical&Medical-Othe Public Sector,SAFEGUARDING,SHEFFIELD CITY COUNCIL,28893627,"12,235.00 "
Department of Health,NHS Sheffield CCG,30/09/2019,Soc Care-Joint H&C Teams/Working,INTERMEDIATE CARE,SHEFFIELD CITY COUNCIL,28893627,"151,448.00 "
Department of Health,NHS Sheffield CCG,30/09/2019,Soc Care-Other Soc Care,COMMISSIONING - NON ACUTE,SHEFFIELD CITY COUNCIL,28893627,"1,467,750.00 "
Department of Health,NHS Sheffield CCG,30/09/2019,Soc Care-Support Prim Care,COMMUNITY SERVICES,SHEFFIELD CITY COUNCIL,28893627,"59,500.00 "
Department of Health,NHS Sheffield CCG,30/09/2019,Cont Care- Prior Year Payments,CHC ADULT FULLY FUNDED,SHEFFIELD CITY COUNCIL,29033573,"119,071.94 "
Department of Health,NHS Sheffield CCG,30/09/2019,Cont Care-Physical Disab (65+),CHC ADULT FULLY FUNDED,SHEFFIELD CITY COUNCIL,29033601,"871,421.97 "
Department of Health,NHS Sheffield CCG,30/09/2019,Cont Care- Children,CHC CHILDREN,SHEFFIELD CITY COUNCIL,29070303,"43,708.75 "
Department of Health,NHS Sheffield CCG,30/09/2019,Services From Local Authorities,CONTINUING HEALTHCARE ASSESSMENT & SUPPORT,SHEFFIELD CITY COUNCIL,29151207,"50,000.00 "
Department of Health,NHS Sheffield CCG,30/09/2019,Cont Care-NHSFT-Adult 100% Funded,CHC ADULT FULLY FUNDED,SHEFFIELD HEALTH & SOCIAL CARE NHS FOUNDATION TRUST,28807442,"222,775.58 "
Department of Health,NHS Sheffield CCG,30/09/2019,Hcare Srv Rec Fdtn Trust-Contract Baseline,MENTAL HEALTH CONTRACTS,SHEFFIELD HEALTH & SOCIAL CARE NHS FOUNDATION TRUST,28967429,"6,833,545.75 "
Department of Health,NHS Sheffield CCG,30/09/2019,Hcare Srv Rec Fdtn Trust-Contract Baseline,ACUTE COMMISSIONING,SHEFFIELD TEACHING HOSPITALS NHS FOUNDATION TRUST,28893653,"(147,595.00)"
Department of Health,NHS Sheffield CCG,30/09/2019,Hcare Srv Rec Fdtn Trust-Contract Baseline,ACUTE COMMISSIONING,SHEFFIELD TEACHING HOSPITALS NHS FOUNDATION TRUST,28893772,"735,268.00 "
Department of Health,NHS Sheffield CCG,30/09/2019,Hcare Srv Rec Fdtn Trust-Contract Baseline,ACUTE COMMISSIONING,SHEFFIELD TEACHING HOSPITALS NHS FOUNDATION TRUST,29151176,"192,715.00 "
Department of Health,NHS Sheffield CCG,30/09/2019,Hcare Srv Rec Fdtn Trust-Contract Baseline,ACUTE COMMISSIONING,SHEFFIELD TEACHING HOSPITALS NHS FOUNDATION TRUST,29151177,"1,367,220.00 "
Department of Health,NHS Sheffield CCG,30/09/2019,Hcare Srv Rec Fdtn Trust-Contract Baseline,ACUTE COMMISSIONING,SHEFFIELD TEACHING HOSPITALS NHS FOUNDATION TRUST,29151179,"3,898,718.00 "
Department of Health,NHS Sheffield CCG,30/09/2019,Hcare Srv Rec Fdtn Trust-Contract Baseline,ACUTE COMMISSIONING,SHEFFIELD TEACHING HOSPITALS NHS FOUNDATION TRUST,29151180,"30,408,061.00 "
Department of Health,NHS Sheffield CCG,30/09/2019,C&M-GMS Cost of Drugs -Prescribing,LOCAL ENHANCED SERVICES,SHIREGREEN MEDICAL CENTRE,29113154,"2,247.47 "
Department of Health,NHS Sheffield CCG,30/09/2019,C&M-GMS Global Sum,PRC DELEGATED CO-COMMISSIONING,SHIREGREEN MEDICAL CENTRE,29113154,"58,653.83 "
Department of Health,NHS Sheffield CCG,30/09/2019,C&M-GMS MPIG Correction Factor,PRC DELEGATED CO-COMMISSIONING,SHIREGREEN MEDICAL CENTRE,29113154,226.84 
Department of Health,NHS Sheffield CCG,30/09/2019,C&M-GMS PCN DES Participation,PRC DELEGATED CO-COMMISSIONING,SHIREGREEN MEDICAL CENTRE,29113154,"1,217.78 "
Department of Health,NHS Sheffield CCG,30/09/2019,C&M-GMS PCO Seniority,PRC DELEGATED CO-COMMISSIONING,SHIREGREEN MEDICAL CENTRE,29113154,"1,117.19 "
Department of Health,NHS Sheffield CCG,30/09/2019,C&M-GMS Prem Cost Rent,PRC DELEGATED CO-COMMISSIONING,SHIREGREEN MEDICAL CENTRE,29113154,"1,792.33 "
Department of Health,NHS Sheffield CCG,30/09/2019,C&M-GMS Prem Notional Rent,PRC DELEGATED CO-COMMISSIONING,SHIREGREEN MEDICAL CENTRE,29113154,"5,375.00 "
Department of Health,NHS Sheffield CCG,30/09/2019,C&M-GMS Prem Rates,PRC DELEGATED CO-COMMISSIONING,SHIREGREEN MEDICAL CENTRE,29113154,"1,922.00 "
Department of Health,NHS Sheffield CCG,30/09/2019,C&M-GMS Prof Fees Prescribing,PRC DELEGATED CO-COMMISSIONING,SHIREGREEN MEDICAL CENTRE,29113154,283.80 
Department of Health,NHS Sheffield CCG,30/09/2019,C&M-GMS QOF Aspiration,PRC DELEGATED CO-COMMISSIONING,SHIREGREEN MEDICAL CENTRE,29113154,"6,849.89 "
Department of Health,NHS Sheffield CCG,30/09/2019,C&M-PMS Contract Value,PRC DELEGATED CO-COMMISSIONING,SLOAN MEDICAL CENTRE,28878568,"95,329.16 "
Department of Health,NHS Sheffield CCG,30/09/2019,C&M-PMS PCN DES Participation,PRC DELEGATED CO-COMMISSIONING,SLOAN MEDICAL CENTRE,28878568,"1,809.97 "
Department of Health,NHS Sheffield CCG,30/09/2019,C&M-PMS PCO Other,PRC DELEGATED CO-COMMISSIONING,SLOAN MEDICAL CENTRE,28878568,802.90 
Department of Health,NHS Sheffield CCG,30/09/2019,C&M-PMS PCO Seniority,PRC DELEGATED CO-COMMISSIONING,SLOAN MEDICAL CENTRE,28878568,"3,420.29 "
Department of Health,NHS Sheffield CCG,30/09/2019,C&M-PMS Prem Actual Rent,PRC DELEGATED CO-COMMISSIONING,SLOAN MEDICAL CENTRE,28878568,"15,535.83 "
Department of Health,NHS Sheffield CCG,30/09/2019,C&M-PMS Prem Notional Rent,PRC DELEGATED CO-COMMISSIONING,SLOAN MEDICAL CENTRE,28878568,608.33 
Department of Health,NHS Sheffield CCG,30/09/2019,C&M-PMS Prem Rates,PRC DELEGATED CO-COMMISSIONING,SLOAN MEDICAL CENTRE,28878568,"3,423.00 "
Department of Health,NHS Sheffield CCG,30/09/2019,C&M-PMS Prem Water Rates,PRC DELEGATED CO-COMMISSIONING,SLOAN MEDICAL CENTRE,28878568,822.70 
Department of Health,NHS Sheffield CCG,30/09/2019,C&M-PMS QOF Aspiration,PRC DELEGATED CO-COMMISSIONING,SLOAN MEDICAL CENTRE,28878568,"10,003.70 "
Department of Health,NHS Sheffield CCG,30/09/2019,C&M-PMS Contract Value,PRC DELEGATED CO-COMMISSIONING,SOTHALL MEDICAL CENTRE,28878570,"71,170.89 "
Department of Health,NHS Sheffield CCG,30/09/2019,C&M-PMS Out of Hours Opt Outs,PRC DELEGATED CO-COMMISSIONING,SOTHALL MEDICAL CENTRE,28878570,15.00 
Department of Health,NHS Sheffield CCG,30/09/2019,C&M-PMS PCN DES Participation,PRC DELEGATED CO-COMMISSIONING,SOTHALL MEDICAL CENTRE,28878570,"1,351.91 "
Department of Health,NHS Sheffield CCG,30/09/2019,C&M-PMS PCO Other,PRC DELEGATED CO-COMMISSIONING,SOTHALL MEDICAL CENTRE,28878570,627.60 
Department of Health,NHS Sheffield CCG,30/09/2019,C&M-PMS PCO Seniority,PRC DELEGATED CO-COMMISSIONING,SOTHALL MEDICAL CENTRE,28878570,"3,035.51 "
Department of Health,NHS Sheffield CCG,30/09/2019,C&M-PMS Prem Notional Rent,PRC DELEGATED CO-COMMISSIONING,SOTHALL MEDICAL CENTRE,28878570,"5,116.67 "
Department of Health,NHS Sheffield CCG,30/09/2019,C&M-PMS Prem Rates,PRC DELEGATED CO-COMMISSIONING,SOTHALL MEDICAL CENTRE,28878570,"1,412.00 "
Department of Health,NHS Sheffield CCG,30/09/2019,C&M-PMS QOF Aspiration,PRC DELEGATED CO-COMMISSIONING,SOTHALL MEDICAL CENTRE,28878570,"8,630.52 "
Department of Health,NHS Sheffield CCG,30/09/2019,Clinical&Medical-Independent Sector,MENTAL HEALTH CONTRACTS,SOUTH YORKSHIRE HOUSING ASSOCIATION LTD,28835683,"34,435.00 "
Department of Health,NHS Sheffield CCG,30/09/2019,Cont Care- Adult 100% Fully Funded,CHC ADULT FULLY FUNDED,SOUTH YORKSHIRE HOUSING ASSOCIATION LTD,28853392,"25,500.00 "
Department of Health,NHS Sheffield CCG,30/09/2019,Cont Care- Adult 100% Fully Funded,CHC ADULT FULLY FUNDED,SOUTH YORKSHIRE HOUSING ASSOCIATION LTD,28893612,"46,763.59 "
Department of Health,NHS Sheffield CCG,30/09/2019,Cont Care-Physical Disab (<65),CHC ADULT FULLY FUNDED,SOUTH YORKSHIRE HOUSING ASSOCIATION LTD,28893855,"92,520.37 "
Department of Health,NHS Sheffield CCG,30/09/2019,Clinical&Medical-Voluntary Sector,COLLABORATIVE COMMISSIONING,SOUTH YORKSHIRE HOUSING ASSOCIATION LTD,29151223,"191,585.00 "
Department of Health,NHS Sheffield CCG,30/09/2019,C&M-PMS Contract Value,PRC DELEGATED CO-COMMISSIONING,SOUTHEY GREEN MEDICAL CENTRE,28878572,"25,168.62 "
Department of Health,NHS Sheffield CCG,30/09/2019,C&M-PMS Out of Hours Opt Outs,PRC DELEGATED CO-COMMISSIONING,SOUTHEY GREEN MEDICAL CENTRE,28878572,8.62 
Department of Health,NHS Sheffield CCG,30/09/2019,C&M-PMS PCN DES Participation,PRC DELEGATED CO-COMMISSIONING,SOUTHEY GREEN MEDICAL CENTRE,28878572,475.68 
Department of Health,NHS Sheffield CCG,30/09/2019,C&M-PMS PCO Seniority,PRC DELEGATED CO-COMMISSIONING,SOUTHEY GREEN MEDICAL CENTRE,28878572,776.47 
Department of Health,NHS Sheffield CCG,30/09/2019,C&M-PMS Prem Notional Rent,PRC DELEGATED CO-COMMISSIONING,SOUTHEY GREEN MEDICAL CENTRE,28878572,"3,362.50 "
Department of Health,NHS Sheffield CCG,30/09/2019,C&M-PMS QOF Aspiration,PRC DELEGATED CO-COMMISSIONING,SOUTHEY GREEN MEDICAL CENTRE,28878572,"2,668.69 "
Department of Health,NHS Sheffield CCG,30/09/2019,Clinical&Medical-Independent Sector,NCAS/OATS,SPAMEDICA LTD,29151169,"123,326.24 "
Department of Health,NHS Sheffield CCG,30/09/2019,C&M-GMS Cost of Drugs -Prescribing,LOCAL ENHANCED SERVICES,STANNINGTON MEDICAL CENTRE,29113158,"1,255.75 "
Department of Health,NHS Sheffield CCG,30/09/2019,C&M-GMS Global Sum,PRC DELEGATED CO-COMMISSIONING,STANNINGTON MEDICAL CENTRE,29113158,"25,840.04 "
Department of Health,NHS Sheffield CCG,30/09/2019,C&M-GMS PCO Other,PRC DELEGATED CO-COMMISSIONING,STANNINGTON MEDICAL CENTRE,29113158,237.70 
Department of Health,NHS Sheffield CCG,30/09/2019,C&M-GMS PCO Seniority,PRC DELEGATED CO-COMMISSIONING,STANNINGTON MEDICAL CENTRE,29113158,895.40 
Department of Health,NHS Sheffield CCG,30/09/2019,C&M-GMS Prem Notional Rent,PRC DELEGATED CO-COMMISSIONING,STANNINGTON MEDICAL CENTRE,29113158,"2,575.00 "
Department of Health,NHS Sheffield CCG,30/09/2019,C&M-GMS Prem Rates,PRC DELEGATED CO-COMMISSIONING,STANNINGTON MEDICAL CENTRE,29113158,428.00 
Department of Health,NHS Sheffield CCG,30/09/2019,C&M-GMS Prof Fees Prescribing,PRC DELEGATED CO-COMMISSIONING,STANNINGTON MEDICAL CENTRE,29113158,175.57 
Department of Health,NHS Sheffield CCG,30/09/2019,C&M-GMS QOF Aspiration,PRC DELEGATED CO-COMMISSIONING,STANNINGTON MEDICAL CENTRE,29113158,"2,881.70 "
Department of Health,NHS Sheffield CCG,30/09/2019,C&M-GMS Cost of Drugs -Prescribing,LOCAL ENHANCED SERVICES,STONECROFT MEDICAL CENTRE,29113156,701.36 
Department of Health,NHS Sheffield CCG,30/09/2019,C&M-GMS Global Sum,PRC DELEGATED CO-COMMISSIONING,STONECROFT MEDICAL CENTRE,29113156,"32,399.15 "
Department of Health,NHS Sheffield CCG,30/09/2019,C&M-GMS MPIG Correction Factor,PRC DELEGATED CO-COMMISSIONING,STONECROFT MEDICAL CENTRE,29113156,309.13 
Department of Health,NHS Sheffield CCG,30/09/2019,C&M-GMS PCN DES Participation,PRC DELEGATED CO-COMMISSIONING,STONECROFT MEDICAL CENTRE,29113156,657.55 
Department of Health,NHS Sheffield CCG,30/09/2019,C&M-GMS PCO Other,PRC DELEGATED CO-COMMISSIONING,STONECROFT MEDICAL CENTRE,29113156,284.70 
Department of Health,NHS Sheffield CCG,30/09/2019,C&M-GMS PCO Seniority,PRC DELEGATED CO-COMMISSIONING,STONECROFT MEDICAL CENTRE,29113156,"1,386.59 "
Department of Health,NHS Sheffield CCG,30/09/2019,C&M-GMS Prem Notional Rent,PRC DELEGATED CO-COMMISSIONING,STONECROFT MEDICAL CENTRE,29113156,"2,808.33 "
Department of Health,NHS Sheffield CCG,30/09/2019,C&M-GMS Prem Rates,PRC DELEGATED CO-COMMISSIONING,STONECROFT MEDICAL CENTRE,29113156,"1,215.00 "
Department of Health,NHS Sheffield CCG,30/09/2019,C&M-GMS Prem Water Rates,PRC DELEGATED CO-COMMISSIONING,STONECROFT MEDICAL CENTRE,29113156,99.84 
Department of Health,NHS Sheffield CCG,30/09/2019,C&M-GMS Prof Fees Prescribing,PRC DELEGATED CO-COMMISSIONING,STONECROFT MEDICAL CENTRE,29113156,127.47 
Department of Health,NHS Sheffield CCG,30/09/2019,C&M-GMS QOF Aspiration,PRC DELEGATED CO-COMMISSIONING,STONECROFT MEDICAL CENTRE,29113156,"4,228.40 "
Department of Health,NHS Sheffield CCG,30/09/2019,Cont Care-Physical Disab (<65),CHC ADULT FULLY FUNDED,SUSASH GB LTD T/A EAGLE HOUSE,28906689,"32,532.73 "
Department of Health,NHS Sheffield CCG,30/09/2019,Clinical&Medical-Independent Sector,MENTAL HEALTH CONTRACTS,SUSASH GB LTD T/A EAGLE HOUSE,29179246,"30,092.00 "
Department of Health,NHS Sheffield CCG,30/09/2019,C&M-GMS Cost of Drugs -Prescribing,LOCAL ENHANCED SERVICES,TOTLEY RISE MEDICAL CENTRE,29113160,931.77 
Department of Health,NHS Sheffield CCG,30/09/2019,C&M-GMS Global Sum,PRC DELEGATED CO-COMMISSIONING,TOTLEY RISE MEDICAL CENTRE,29113160,"25,128.99 "
Department of Health,NHS Sheffield CCG,30/09/2019,C&M-GMS MPIG Correction Factor,PRC DELEGATED CO-COMMISSIONING,TOTLEY RISE MEDICAL CENTRE,29113160,51.57 
Department of Health,NHS Sheffield CCG,30/09/2019,C&M-GMS PCN DES Participation,PRC DELEGATED CO-COMMISSIONING,TOTLEY RISE MEDICAL CENTRE,29113160,504.35 
Department of Health,NHS Sheffield CCG,30/09/2019,C&M-GMS PCO Seniority,PRC DELEGATED CO-COMMISSIONING,TOTLEY RISE MEDICAL CENTRE,29113160,"1,117.19 "
Department of Health,NHS Sheffield CCG,30/09/2019,C&M-GMS Prem Notional Rent,PRC DELEGATED CO-COMMISSIONING,TOTLEY RISE MEDICAL CENTRE,29113160,"1,604.17 "
Department of Health,NHS Sheffield CCG,30/09/2019,C&M-GMS Prof Fees Prescribing,PRC DELEGATED CO-COMMISSIONING,TOTLEY RISE MEDICAL CENTRE,29113160,98.61 
Department of Health,NHS Sheffield CCG,30/09/2019,C&M-GMS QOF Aspiration,PRC DELEGATED CO-COMMISSIONING,TOTLEY RISE MEDICAL CENTRE,29113160,"2,304.18 "
Department of Health,NHS Sheffield CCG,30/09/2019,C&M-GMS Cost of Drugs -Prescribing,LOCAL ENHANCED SERVICES,TRAMWAYS MEDICAL CENTRE,29113162,"2,283.60 "
Department of Health,NHS Sheffield CCG,30/09/2019,C&M-GMS Global Sum,PRC DELEGATED CO-COMMISSIONING,TRAMWAYS MEDICAL CENTRE,29113162,"61,216.66 "
Department of Health,NHS Sheffield CCG,30/09/2019,C&M-GMS PCN DES Participation,PRC DELEGATED CO-COMMISSIONING,TRAMWAYS MEDICAL CENTRE,29113162,"1,263.94 "
Department of Health,NHS Sheffield CCG,30/09/2019,C&M-GMS PCO Other,PRC DELEGATED CO-COMMISSIONING,TRAMWAYS MEDICAL CENTRE,29113162,534.60 
Department of Health,NHS Sheffield CCG,30/09/2019,C&M-GMS PCO Seniority,PRC DELEGATED CO-COMMISSIONING,TRAMWAYS MEDICAL CENTRE,29113162,"2,799.44 "
Department of Health,NHS Sheffield CCG,30/09/2019,C&M-GMS Prem Cost Rent,PRC DELEGATED CO-COMMISSIONING,TRAMWAYS MEDICAL CENTRE,29113162,"4,012.75 "
Department of Health,NHS Sheffield CCG,30/09/2019,C&M-GMS Prem Rates,PRC DELEGATED CO-COMMISSIONING,TRAMWAYS MEDICAL CENTRE,29113162,"1,098.00 "
Department of Health,NHS Sheffield CCG,30/09/2019,C&M-GMS Prof Fees Prescribing,PRC DELEGATED CO-COMMISSIONING,TRAMWAYS MEDICAL CENTRE,29113162,206.84 
Department of Health,NHS Sheffield CCG,30/09/2019,C&M-GMS QOF Aspiration,PRC DELEGATED CO-COMMISSIONING,TRAMWAYS MEDICAL CENTRE,29113162,"5,645.42 "
Department of Health,NHS Sheffield CCG,30/09/2019,Hcare Srv Rec NHS Trust-Contract Baseline,ACUTE COMMISSIONING,UNITED LINCOLNSHIRE HOSPITALS NHS TRUST,28929006,"26,180.60 "
Department of Health,NHS Sheffield CCG,30/09/2019,C&M-PMS Contract Value,PRC DELEGATED CO-COMMISSIONING,UNIVERSITY HEALTH SERVICE,28878576,"179,785.50 "
Department of Health,NHS Sheffield CCG,30/09/2019,C&M-PMS DES Extended Hours Access,PRC DELEGATED CO-COMMISSIONING,UNIVERSITY HEALTH SERVICE,28878576,"4,573.92 "
Department of Health,NHS Sheffield CCG,30/09/2019,C&M-PMS Out of Hours Opt Outs,PRC DELEGATED CO-COMMISSIONING,UNIVERSITY HEALTH SERVICE,28878576,572.06 
Department of Health,NHS Sheffield CCG,30/09/2019,C&M-PMS PCN DES Clinical Director,PRC DELEGATED CO-COMMISSIONING,UNIVERSITY HEALTH SERVICE,28878576,"2,139.21 "
Department of Health,NHS Sheffield CCG,30/09/2019,C&M-PMS PCN DES PCN support,LOCAL ENHANCED SERVICES,UNIVERSITY HEALTH SERVICE,28878576,"4,682.13 "
Department of Health,NHS Sheffield CCG,30/09/2019,C&M-PMS PCN DES Participation,PRC DELEGATED CO-COMMISSIONING,UNIVERSITY HEALTH SERVICE,28878576,"3,535.52 "
Department of Health,NHS Sheffield CCG,30/09/2019,C&M-PMS PCO Seniority,PRC DELEGATED CO-COMMISSIONING,UNIVERSITY HEALTH SERVICE,28878576,"3,093.49 "
Department of Health,NHS Sheffield CCG,30/09/2019,C&M-PMS Prem Notional Rent,PRC DELEGATED CO-COMMISSIONING,UNIVERSITY HEALTH SERVICE,28878576,"15,833.33 "
Department of Health,NHS Sheffield CCG,30/09/2019,C&M-PMS QOF Aspiration,PRC DELEGATED CO-COMMISSIONING,UNIVERSITY HEALTH SERVICE,28878576,"4,031.41 "
Department of Health,NHS Sheffield CCG,30/09/2019,C&M-GMS Cost of Drugs -Prescribing,LOCAL ENHANCED SERVICES,UPPERTHORPE MEDICAL CENTRE,29113165,"3,138.88 "
Department of Health,NHS Sheffield CCG,30/09/2019,C&M-GMS Global Sum,PRC DELEGATED CO-COMMISSIONING,UPPERTHORPE MEDICAL CENTRE,29113165,"83,141.65 "
Department of Health,NHS Sheffield CCG,30/09/2019,C&M-GMS MPIG Correction Factor,PRC DELEGATED CO-COMMISSIONING,UPPERTHORPE MEDICAL CENTRE,29113165,662.87 
Department of Health,NHS Sheffield CCG,30/09/2019,C&M-GMS PCN DES Participation,PRC DELEGATED CO-COMMISSIONING,UPPERTHORPE MEDICAL CENTRE,29113165,"1,681.95 "
Department of Health,NHS Sheffield CCG,30/09/2019,C&M-GMS PCO Seniority,PRC DELEGATED CO-COMMISSIONING,UPPERTHORPE MEDICAL CENTRE,29113165,"2,187.91 "
Department of Health,NHS Sheffield CCG,30/09/2019,C&M-GMS Prem Actual Rent,PRC DELEGATED CO-COMMISSIONING,UPPERTHORPE MEDICAL CENTRE,29113165,"29,475.00 "
Department of Health,NHS Sheffield CCG,30/09/2019,C&M-GMS Prem Notional Rent,PRC DELEGATED CO-COMMISSIONING,UPPERTHORPE MEDICAL CENTRE,29113165,"2,497.83 "
Department of Health,NHS Sheffield CCG,30/09/2019,C&M-GMS Prem Rates,PRC DELEGATED CO-COMMISSIONING,UPPERTHORPE MEDICAL CENTRE,29113165,"2,318.00 "
Department of Health,NHS Sheffield CCG,30/09/2019,C&M-GMS Prof Fees Prescribing,PRC DELEGATED CO-COMMISSIONING,UPPERTHORPE MEDICAL CENTRE,29113165,247.73 
Department of Health,NHS Sheffield CCG,30/09/2019,C&M-GMS QOF Aspiration,PRC DELEGATED CO-COMMISSIONING,UPPERTHORPE MEDICAL CENTRE,29113165,"9,072.83 "
Department of Health,NHS Sheffield CCG,30/09/2019,C&M-PMS Contract Value,PRC DELEGATED CO-COMMISSIONING,UPWELL STREET SURGERY,28878578,"37,734.18 "
Department of Health,NHS Sheffield CCG,30/09/2019,C&M-PMS DES Learn Dsblty Hlth Chk,PRC DELEGATED CO-COMMISSIONING,UPWELL STREET SURGERY,28878578,140.00 
Department of Health,NHS Sheffield CCG,30/09/2019,C&M-PMS Out of Hours Opt Outs,PRC DELEGATED CO-COMMISSIONING,UPWELL STREET SURGERY,28878578,14.04 
Department of Health,NHS Sheffield CCG,30/09/2019,C&M-PMS PCN DES Participation,PRC DELEGATED CO-COMMISSIONING,UPWELL STREET SURGERY,28878578,713.41 
Department of Health,NHS Sheffield CCG,30/09/2019,C&M-PMS PCO Other,PRC DELEGATED CO-COMMISSIONING,UPWELL STREET SURGERY,28878578,324.80 
Department of Health,NHS Sheffield CCG,30/09/2019,C&M-PMS PCO Seniority,PRC DELEGATED CO-COMMISSIONING,UPWELL STREET SURGERY,28878578,807.56 
Department of Health,NHS Sheffield CCG,30/09/2019,C&M-PMS Prem Notional Rent,PRC DELEGATED CO-COMMISSIONING,UPWELL STREET SURGERY,28878578,"8,137.50 "
Department of Health,NHS Sheffield CCG,30/09/2019,C&M-PMS Prem Rates,PRC DELEGATED CO-COMMISSIONING,UPWELL STREET SURGERY,28878578,"1,340.00 "
Department of Health,NHS Sheffield CCG,30/09/2019,C&M-PMS Prem Water Rates,PRC DELEGATED CO-COMMISSIONING,UPWELL STREET SURGERY,28878578,121.63 
Department of Health,NHS Sheffield CCG,30/09/2019,C&M-PMS QOF Aspiration,PRC DELEGATED CO-COMMISSIONING,UPWELL STREET SURGERY,28878578,"4,056.38 "
Department of Health,NHS Sheffield CCG,30/09/2019,C&M-PMS Contract Value,PRC DELEGATED CO-COMMISSIONING,VALLEY MEDICAL CENTRE,28878580,"78,804.25 "
Department of Health,NHS Sheffield CCG,30/09/2019,C&M-PMS DES Extended Hours Access,PRC DELEGATED CO-COMMISSIONING,VALLEY MEDICAL CENTRE,28878580,"2,533.07 "
Department of Health,NHS Sheffield CCG,30/09/2019,C&M-PMS PCN DES Clinical Director,PRC DELEGATED CO-COMMISSIONING,VALLEY MEDICAL CENTRE,28878580,"1,184.71 "
Department of Health,NHS Sheffield CCG,30/09/2019,C&M-PMS PCN DES PCN support,LOCAL ENHANCED SERVICES,VALLEY MEDICAL CENTRE,28878580,"2,593.00 "
Department of Health,NHS Sheffield CCG,30/09/2019,C&M-PMS PCN DES Participation,PRC DELEGATED CO-COMMISSIONING,VALLEY MEDICAL CENTRE,28878580,"1,492.89 "
Department of Health,NHS Sheffield CCG,30/09/2019,C&M-PMS PCO Seniority,PRC DELEGATED CO-COMMISSIONING,VALLEY MEDICAL CENTRE,28878580,"4,169.76 "
Department of Health,NHS Sheffield CCG,30/09/2019,C&M-PMS Prem Actual Rent,PRC DELEGATED CO-COMMISSIONING,VALLEY MEDICAL CENTRE,28878580,"25,468.75 "
Department of Health,NHS Sheffield CCG,30/09/2019,C&M-PMS Prem Rates,PRC DELEGATED CO-COMMISSIONING,VALLEY MEDICAL CENTRE,28878580,"1,664.00 "
Department of Health,NHS Sheffield CCG,30/09/2019,C&M-PMS QOF Aspiration,PRC DELEGATED CO-COMMISSIONING,VALLEY MEDICAL CENTRE,28878580,"8,453.91 "
Department of Health,NHS Sheffield CCG,30/09/2019,Cont Care-Funded Nursing Care Allow,FUNDED NURSING CARE,VALORUM CARE LTD,29033074,"26,536.93 "
Department of Health,NHS Sheffield CCG,30/09/2019,Cont Care-Physical Disab (<65),CHC ADULT FULLY FUNDED,VALORUM CARE LTD,29033088,"117,226.42 "
Department of Health,NHS Sheffield CCG,30/09/2019,C&M-GMS Cost of Drugs -Prescribing,LOCAL ENHANCED SERVICES,WALKLEY HOUSE MEDICAL CENTRE,29113171,"1,019.74 "
Department of Health,NHS Sheffield CCG,30/09/2019,C&M-GMS Global Sum,PRC DELEGATED CO-COMMISSIONING,WALKLEY HOUSE MEDICAL CENTRE,29113171,"85,009.73 "
Department of Health,NHS Sheffield CCG,30/09/2019,C&M-GMS PCN DES Participation,PRC DELEGATED CO-COMMISSIONING,WALKLEY HOUSE MEDICAL CENTRE,29113171,"1,749.49 "
Department of Health,NHS Sheffield CCG,30/09/2019,C&M-GMS PCO Seniority,PRC DELEGATED CO-COMMISSIONING,WALKLEY HOUSE MEDICAL CENTRE,29113171,"1,269.72 "
Department of Health,NHS Sheffield CCG,30/09/2019,C&M-GMS Prem Notional Rent,PRC DELEGATED CO-COMMISSIONING,WALKLEY HOUSE MEDICAL CENTRE,29113171,"5,635.50 "
Department of Health,NHS Sheffield CCG,30/09/2019,C&M-GMS Prem Rates,PRC DELEGATED CO-COMMISSIONING,WALKLEY HOUSE MEDICAL CENTRE,29113171,"1,845.00 "
Department of Health,NHS Sheffield CCG,30/09/2019,C&M-GMS Prof Fees Prescribing,PRC DELEGATED CO-COMMISSIONING,WALKLEY HOUSE MEDICAL CENTRE,29113171,218.88 
Department of Health,NHS Sheffield CCG,30/09/2019,C&M-GMS QOF Aspiration,PRC DELEGATED CO-COMMISSIONING,WALKLEY HOUSE MEDICAL CENTRE,29113171,"8,602.90 "
Department of Health,NHS Sheffield CCG,30/09/2019,C&M-GMS Cost of Drugs -Prescribing,LOCAL ENHANCED SERVICES,WHITE HOUSE SURGERY SHEFFIELD,29113169,"1,298.17 "
Department of Health,NHS Sheffield CCG,30/09/2019,C&M-GMS Global Sum,PRC DELEGATED CO-COMMISSIONING,WHITE HOUSE SURGERY SHEFFIELD,29113169,"51,291.41 "
Department of Health,NHS Sheffield CCG,30/09/2019,C&M-GMS MPIG Correction Factor,PRC DELEGATED CO-COMMISSIONING,WHITE HOUSE SURGERY SHEFFIELD,29113169,695.65 
Department of Health,NHS Sheffield CCG,30/09/2019,C&M-GMS PCN DES Participation,PRC DELEGATED CO-COMMISSIONING,WHITE HOUSE SURGERY SHEFFIELD,29113169,"1,038.45 "
Department of Health,NHS Sheffield CCG,30/09/2019,C&M-GMS PCO Seniority,PRC DELEGATED CO-COMMISSIONING,WHITE HOUSE SURGERY SHEFFIELD,29113169,"1,649.93 "
Department of Health,NHS Sheffield CCG,30/09/2019,C&M-GMS Prem Notional Rent,PRC DELEGATED CO-COMMISSIONING,WHITE HOUSE SURGERY SHEFFIELD,29113169,"9,412.50 "
Department of Health,NHS Sheffield CCG,30/09/2019,C&M-GMS Prem Rates,PRC DELEGATED CO-COMMISSIONING,WHITE HOUSE SURGERY SHEFFIELD,29113169,"2,443.00 "
Department of Health,NHS Sheffield CCG,30/09/2019,C&M-GMS Prem Water Rates,PRC DELEGATED CO-COMMISSIONING,WHITE HOUSE SURGERY SHEFFIELD,29113169,196.31 
Department of Health,NHS Sheffield CCG,30/09/2019,C&M-GMS Prof Fees Prescribing,PRC DELEGATED CO-COMMISSIONING,WHITE HOUSE SURGERY SHEFFIELD,29113169,250.13 
Department of Health,NHS Sheffield CCG,30/09/2019,C&M-GMS QOF Aspiration,PRC DELEGATED CO-COMMISSIONING,WHITE HOUSE SURGERY SHEFFIELD,29113169,"6,233.52 "
Department of Health,NHS Sheffield CCG,30/09/2019,Cont Care-Physical Disab (<65),CHC ADULT FULLY FUNDED,WILLOWBECK HEALTH CARE LTD,28893824,"111,485.86 "
Department of Health,NHS Sheffield CCG,30/09/2019,C&M-PMS Contract Value,PRC DELEGATED CO-COMMISSIONING,WINCOBANK MEDICAL CENTRE,28878584,"62,282.64 "
Department of Health,NHS Sheffield CCG,30/09/2019,C&M-PMS Out of Hours Opt Outs,PRC DELEGATED CO-COMMISSIONING,WINCOBANK MEDICAL CENTRE,28878584,14.95 
Department of Health,NHS Sheffield CCG,30/09/2019,C&M-PMS PCN DES Participation,PRC DELEGATED CO-COMMISSIONING,WINCOBANK MEDICAL CENTRE,28878584,"1,179.69 "
Department of Health,NHS Sheffield CCG,30/09/2019,C&M-PMS PCO Seniority,PRC DELEGATED CO-COMMISSIONING,WINCOBANK MEDICAL CENTRE,28878584,484.39 
Department of Health,NHS Sheffield CCG,30/09/2019,C&M-PMS Prem Healthcentre Rent,PRC DELEGATED CO-COMMISSIONING,WINCOBANK MEDICAL CENTRE,28878584,"45,121.79 "
Department of Health,NHS Sheffield CCG,30/09/2019,C&M-PMS QOF Aspiration,PRC DELEGATED CO-COMMISSIONING,WINCOBANK MEDICAL CENTRE,28878584,"6,283.36 "
Department of Health,NHS Sheffield CCG,30/09/2019,C&M-PMS Contract Value,PRC DELEGATED CO-COMMISSIONING,WOODHOUSE HEALTH CENTRE,28878582,"100,768.86 "
Department of Health,NHS Sheffield CCG,30/09/2019,C&M-PMS Out of Hours Opt Outs,PRC DELEGATED CO-COMMISSIONING,WOODHOUSE HEALTH CENTRE,28878582,8.54 
Department of Health,NHS Sheffield CCG,30/09/2019,C&M-PMS PCN DES Participation,PRC DELEGATED CO-COMMISSIONING,WOODHOUSE HEALTH CENTRE,28878582,"1,906.58 "
Department of Health,NHS Sheffield CCG,30/09/2019,C&M-PMS PCO Other,PRC DELEGATED CO-COMMISSIONING,WOODHOUSE HEALTH CENTRE,28878582,746.40 
Department of Health,NHS Sheffield CCG,30/09/2019,C&M-PMS PCO Seniority,PRC DELEGATED CO-COMMISSIONING,WOODHOUSE HEALTH CENTRE,28878582,"4,719.98 "
Department of Health,NHS Sheffield CCG,30/09/2019,C&M-PMS Prem Notional Rent,PRC DELEGATED CO-COMMISSIONING,WOODHOUSE HEALTH CENTRE,28878582,"6,338.58 "
Department of Health,NHS Sheffield CCG,30/09/2019,C&M-PMS Prem Rates,PRC DELEGATED CO-COMMISSIONING,WOODHOUSE HEALTH CENTRE,28878582,"1,757.00 "
Department of Health,NHS Sheffield CCG,30/09/2019,C&M-PMS QOF Aspiration,PRC DELEGATED CO-COMMISSIONING,WOODHOUSE HEALTH CENTRE,28878582,"13,912.30 "
Department of Health,NHS Sheffield CCG,30/09/2019,C&M-PMS Contract Value,PRC DELEGATED CO-COMMISSIONING,WOODSEATS MEDICAL CENTRE,28883646,"77,276.71 "
Department of Health,NHS Sheffield CCG,30/09/2019,C&M-PMS PCN DES Participation,PRC DELEGATED CO-COMMISSIONING,WOODSEATS MEDICAL CENTRE,28883646,"1,439.13 "
Department of Health,NHS Sheffield CCG,30/09/2019,C&M-PMS PCO Locum Adop/Pat/Mat,PRC DELEGATED CO-COMMISSIONING,WOODSEATS MEDICAL CENTRE,28883646,"6,674.85 "
Department of Health,NHS Sheffield CCG,30/09/2019,C&M-PMS PCO Other,PRC DELEGATED CO-COMMISSIONING,WOODSEATS MEDICAL CENTRE,28883646,622.70 
Department of Health,NHS Sheffield CCG,30/09/2019,C&M-PMS PCO Seniority,PRC DELEGATED CO-COMMISSIONING,WOODSEATS MEDICAL CENTRE,28883646,"1,378.43 "
Department of Health,NHS Sheffield CCG,30/09/2019,C&M-PMS Prem Notional Rent,PRC DELEGATED CO-COMMISSIONING,WOODSEATS MEDICAL CENTRE,28883646,"11,666.67 "
Department of Health,NHS Sheffield CCG,30/09/2019,C&M-PMS Prem Rates,PRC DELEGATED CO-COMMISSIONING,WOODSEATS MEDICAL CENTRE,28883646,"3,100.00 "
Department of Health,NHS Sheffield CCG,30/09/2019,C&M-PMS QOF Aspiration,PRC DELEGATED CO-COMMISSIONING,WOODSEATS MEDICAL CENTRE,28883646,"8,242.64 "
Department of Health,NHS Sheffield CCG,30/09/2019,Hcare Srv Rec Fdtn Trust-Non Contract,NCAS/OATS,YORK TEACHING HOSPITAL NHS FOUNDATION TRUST,28791356,"32,341.18 "
Department of Health,NHS Sheffield CCG,30/09/2019,Hcare Srv Rec Fdtn Trust-Non Contract,NCAS/OATS,YORK TEACHING HOSPITAL NHS FOUNDATION TRUST,29138321,"30,322.28 "
Department of Health,NHS Sheffield CCG,30/09/2019,Hcare Srv Rec NHS Trust-Contract Baseline,PATIENT TRANSPORT,YORKSHIRE AMBULANCE SERVICE NHS TRUST,28807574,"267,243.94 "
Department of Health,NHS Sheffield CCG,30/09/2019,Hcare Srv Rec NHS Trust-Contract Baseline,AMBULANCE SERVICES,YORKSHIRE AMBULANCE SERVICE NHS TRUST,28807579,"1,674,240.00 "
Department of Health,NHS Sheffield CCG,30/09/2019,Hcare Srv Rec NHS Trust-Contract Baseline,NHS 111,YORKSHIRE AMBULANCE SERVICE NHS TRUST,28807582,"133,605.27 "
Department of Health,NHS Sheffield CCG,30/09/2019,Hcare Srv Rec NHS Trust-Contract Baseline,AMBULANCE SERVICES,YORKSHIRE AMBULANCE SERVICE NHS TRUST,28807587,"127,348.75 "
